{"text_format":"3","workbook":"xlsx","n_sheets":8,"sheets":["PRA Disclosure Statement","Protocol-Planned metrics","Protocol-SMI & SED definitions","Report-Metrics reporting","Report-Data & reporting issues","Instructions - Avail assessment","Definitions - Avail assessment","Availability Asesssment"],"not_rendered":{"macros":1,"defined_names":18},"read":"whole","date_system":"1900"}

{"sheet":"PRA Disclosure Statement","index":0,"n_rows":3,"n_cols":1,"rows_kept":3}
["PRA Disclosure Statement This information is being collected to assist the Centers for Medicare & Medicaid Services in program monitoring of Medicaid Section 1115 Severe Mental Illness and Severe Emotional Disturbance Demonstrations. This mandatory information collection (42 CFR § 431.428) will be used to support more efficient, timely and accurate review of states’ monitoring report submissions of Medicaid Section 1115 Severe Mental Illness and Severe Emotional Disturbance Demonstrations, and also support consistency in monitoring and evaluation,  increase in reporting accuracy, and reduction in timeframes required for monitoring and evaluation. Under the Privacy Act of 1974 any personally identifying information obtained will be kept private to the extent of the law."]
["End of worksheet"]
["According to the Paperwork Reduction Act of 1995, no persons are required to respond to a collection of information unless it displays a valid OMB control number. The valid OMB control number for this information collection is 0938-1148 (CMS-10398 #59). The time required to complete this information collection is estimated to average 29 hours per response, including the time to review instructions, search existing data resources, gather the data needed, and complete and review the information collection. If you have comments concerning the accuracy of the time estimate(s) or suggestions for improving this form, please write to: CMS, 7500 Security Boulevard, Attn: PRA Reports Clearance Officer, Mail Stop C4-26-05, Baltimore, Maryland 21244-1850."]

{"sheet":"Protocol-Planned metrics","index":1,"n_rows":58,"n_cols":21,"rows_kept":58,"merged":[[10,11,10,13],[10,14,10,15],[10,16,10,20]]}
[]
[null,"Medicaid Section 1115 SMI/SED Demonstration Protocol - Planned metrics"]
[null,"State","[Enter State Name]"]
[null,"Demonstration Name","[Enter Demonstration Name]"]
[null,"Demonstration Year (DY)","[Enter Demonstration Year] (Format: DY1, DY2, DY3, etc.)"]
[null,"Calendar Dates for  DY","[Enter Calendar Dates for Demonstration Year] (Format: MM/DD/YYYY - MM/DD/YYYY)"]
[null,"Reporting Period","[Enter Reporting Period] (Format: Q1, Q2, Q3, Q4)"]
[null,"Calendar Dates for Reporting Period ","[Enter Calendar Dates for Reporting Period (Format: MM/DD/YYYY - MM/DD/YYYY)"]
[null,"Submitted on ","[Enter Date] (Format: MM/DD/YYYY)"]
[]
[{"$nulls":3},"Standard information on CMS-provided metrics",{"$nulls":7},"Baseline, annual goals, and demonstration target",null,null,"Alignment with CMS-provided technical specifications",null,"Initial reporting date"]
["#","Metric name","Metric description","Milestone or reporting topic","Metric type","Reporting category","Data source","Measurement period","Reporting frequency","Reporting priority","State will report (Y/N)","Baseline Reporting Period (MM/DD/YYYY--MM/DD/YYYY)","Annual goal","Overall demonstration target","Attest that planned reporting matches the CMS-provided specification (Y/N)","Explanation of any deviations from the CMS-provided specifications (different data source, definition, codes, target population, etc.)","Dates covered by first measurement period for metric (MM/DD/YYYY - MM/DD/YYYY)","Name of first report in which the metric will be submitted (Format: DY1 Q3 report) ","Submission date of first report in which the metric will be reported (MM/DD/YYYY)","State plans to phase in reporting (Y/N)","Explanation of any plans to phase in reporting over time"]
[1,"SUD Screening of Beneficiaries Admitted to Psychiatric Hospitals or Residential Treatment Settings (SUB-2)","Two rates will be reported for this measure:\n1. SUB-2: Patients who screened positive for unhealthy alcohol use who received or refused a brief intervention during the hospital stay.\n2. SUB-2a: Patients who received the brief intervention during the hospital stay.","Milestone 1","Established quality measure","Annual metrics that are an established quality measure","Medical record review or claims","Year","Annually","Recommended"]
[2,"Use of First-Line Psychosocial Care for Children and Adolescents on Antipsychotics (APP-CH)","Percentage of children and adolescents ages 1 to 17 who had a new prescription for an antipsychotic medication and had documentation of psychosocial care as first-line treatment. ","Milestone 1","Established quality measure","Annual metrics that are an established quality measure","Claims","Year","Annually","Required"]
[3,"All-Cause Emergency Department Utilization Rate for Medicaid Beneficiaries who may Benefit From Integrated Physical and Behavioral Health Care (PMH-20)","Number of all-cause ED visits per 1,000 beneficiary months among adult Medicaid beneficiaries age 18 and older who meet the eligibility criteria of beneficiaries with SMI.","Milestone 2","Established quality measure","Annual metrics that are an established quality measure","Claims","Year","Annually","Required"]
[4,"30-Day All-Cause Unplanned Readmission Following Psychiatric Hospitalization in an Inpatient Psychiatric Facility (IPF)","The rate of unplanned, 30-day, readmission rate for demonstration beneficiaries with a primary discharge diagnosis of a psychiatric disorder or dementia/Alzheimer’s disease. The measurement period used to identify cases in the measure population is 12 months from January 1 through December 31. ","Milestone 2","Established quality measure","Annual metrics that are an established quality measure","Claims","Year","Annually","Required"]
[5,"Medication Reconciliation Upon Admission","Percentage of patients for whom a designated prior to admission (PTA) medication list was generated by referencing one or more external sources of PTA medications and for which all PTA medications have a documented reconciliation action by the end of Day 2 of the hospitalization.","Milestone 2","Established quality measure","Annual metrics that are an established quality measure","Electronic/paper medical records","Year","Annually","Recommended"]
[6,"Medication Continuation Following Inpatient Psychiatric Discharge","This measure assesses whether psychiatric patients admitted to an inpatient psychiatric facility (IPF) for major depressive disorder (MDD), schizophrenia, or bipolar disorder filled a prescription for evidence-based medication within 2 days prior to discharge and 30 days post-discharge. ","Milestone 2","Established quality measure","Annual metrics that are an established quality measure","Claims","Year","Annually","Required"]
[7,"Follow-up After Hospitalization for Mental Illness: Ages 6-17 (FUH-CH)  ","Percentage of discharges for children ages 6 to 17 who were hospitalized for treatment of selected mental illness or intentional self-harm diagnoses and who had a follow-up visit with a mental health practitioner. Two rates are reported: \n• Percentage of discharges for which the child received follow-up within 30 days after discharge \n• Percentage of discharges for which the child received follow-up within 7 days after discharge","Milestone 2","Established quality measure","Annual metrics that are an established quality measure","Claims","Year","Annually","Required"]
[8,"Follow-up After Hospitalization for Mental Illness: Age 18 and older (FUH-AD)","Percentage of discharges for beneficiaries age 18 years and older who were hospitalized for treatment of selected mental illness diagnoses or intentional self-harm and who had a follow-up visit with a mental health practitioner. Two rates are reported:\n• Percentage of discharges for which the beneficiary received follow-up within 30 days after discharge \n• Percentage of discharges for which the beneficiary received follow-up within 7 days after discharge","Milestone 2","Established quality measure","Annual metrics that are an established quality measure","Claims","Year","Annually","Required"]
[9,"Follow-up After Emergency Department Visit for Alcohol and Other Drug Abuse (FUA-AD)","Percentage of emergency department (ED) visits for beneficiaries age 18 and older with a principal diagnosis of alcohol or other drug (AOD) abuse dependence who had a follow-up visit for AOD abuse or dependence. Two rates are reported: \n• Percentage of ED visits for AOD abuse or dependence for which the beneficiary received follow-up within 30 days of the ED visit \n• Percentage of ED visits for AOD abuse or dependence for which the beneficiary received follow-up within 7 days of the ED visit","Milestone 2","Established quality measure","Annual metrics that are an established quality measure","Claims","Year","Annually","Required"]
[10,"Follow-Up After Emergency Department Visit for Mental Illness  (FUM-AD)","Percentage of emergency department (ED) visits for beneficiaries age 18 and older with a principal diagnosis of mental illness or intentional self-harm and who had a follow-up visit for mental illness. Two rates are reported: \n• Percentage of ED visits for mental illness for which the beneficiary received follow-up within 30 days of the ED visit \n•  Percentage of ED visits for mental illness for which the beneficiary received follow-up within 7 days of the ED visit","Milestone 2","Established quality measure","Annual metrics that are an established quality measure","Claims","Year","Annually","Required"]
[11,"Suicide or Overdose Death Within 7 and 30 Days of Discharge From an Inpatient Facility or Residential Treatment for Mental Health Among Beneficiaries With SMI or SED (count) ","Number of suicide or overdose deaths among Medicaid beneficiaries with SMI or SED within 7 and 30 days of discharge from an inpatient facility or residential stay for mental health. ","Milestone 2","CMS-constructed","Other annual metrics","State data on cause of death","Year","Annually","Recommended"]
[12,"Suicide or Overdose Death Within 7 and 30 Days of Discharge From an Inpatient Facility or Residential Treatment for Mental Health Among Beneficiaries With SMI or SED (rate) ","Rate of suicide or overdose deaths among Medicaid beneficiaries with SMI or SED within 7 and 30 days of discharge from an inpatient facility or residential stay for mental health. ","Milestone 2","CMS-constructed","Other annual metrics","State data on cause of death","Year","Annually","Recommended"]
[13,"Mental Health Services Utilization -  Inpatient","Number of beneficiaries in the demonstration or with SMI/SED who use inpatient services related to mental health during the measurement period.","Milestone 3","CMS-constructed","Other monthly and quarterly metrics","Claims","Month","Quarterly","Required"]
[14,"Mental Health Services Utilization -  Intensive Outpatient and Partial Hospitalization","Number of beneficiaries in the demonstration or with SMI/SED who used intensive outpatient and/or partial hospitalization services related to mental health during the measurement period.","Milestone 3","CMS-constructed","Other monthly and quarterly metrics","Claims","Month","Quarterly","Required"]
[15,"Mental Health Services Utilization -  Outpatient","Number of beneficiaries in the demonstration or with SMI/SED who used outpatient services related to mental health during the measurement period.","Milestone 3","CMS-constructed","Other monthly and quarterly metrics","Claims","Month","Quarterly","Required"]
[16,"Mental Health Services Utilization -  ED","Number of beneficiaries in the demonstration or with SMI/SED who use emergency department services for mental health during the measurement period.","Milestone 3","CMS-constructed","Other monthly and quarterly metrics","Claims","Month","Quarterly","Required"]
[17,"Mental Health Services Utilization -  Telehealth","Number of beneficiaries in the demonstration or with SMI/SED who used telehealth services related to mental health during the measurement period.","Milestone 3","CMS-constructed","Other monthly and quarterly metrics","Claims","Month","Quarterly","Required"]
[18,"Mental Health Services Utilization -  Any Services","Number of beneficiaries in the demonstration or with SMI/SED who used any services related to mental health during the measurement period. ","Milestone 3","CMS-constructed","Other monthly and quarterly metrics","Claims","Month","Quarterly","Required"]
["19a","Average Length of Stay in IMDs","Average length of stay (ALOS) for beneficiaries with SMI discharged from an inpatient or residential stay in an IMD. Three rates are reported:\n• ALOS for all IMDs and populations\n• ALOS among short-term stays (less than or equal to 60 days)\n• ALOS among long-term stays (greater than 60 days)","Milestone 3","CMS-constructed","Other annual metrics","Claims \nState-specific IMD database","Year","Annually","Required"]
["19b","Average Length of Stay in IMDs (IMDs receiving FFP only)","Average length of stay (ALOS) for beneficiaries with SMI discharged from an inpatient or residential stay in an IMD receiving federal financial participation (FFP). Three rates are reported:\n• ALOS for all IMDs and populations\n• ALOS among short-term stays (less than or equal to 60 days)\n• ALOS among long-term stays (greater than 60 days)","Milestone 3","CMS-constructed","Other annual metrics","Claims \nState-specific IMD database","Year","Annually","Required"]
[20,"Beneficiaries With SMI/SED Treated in an IMD for Mental Health ","Number of beneficiaries with SMI/SED who have a claim for inpatient or residential treatment for mental health in an IMD during the reporting year.","Milestone 3","CMS-constructed","Other annual metrics","Claims","Year","Annually","Required"]
[21,"Count of Beneficiaries With SMI/SED (monthly)","Count the number of unique beneficiaries (de-duplicated total) enrolled in the measurement period who have qualifying facility, or provider claims have sufficient qualifying facility, or provider claims to qualify as having SMI/SED-related treatment during the measurement period and/or in the 11 months before the measurement period.","Milestone 4","CMS-constructed","Other monthly and quarterly metrics","Claims","Month","Quarterly","Required"]
[22,"Count of Beneficiaries With SMI/SED (annually)","Number of beneficiaries in the demonstration (with a diagnosis and service history indicating SMI/SED) during the measurement period and/or in the 11 months before the measurement period.","Milestone 4","CMS-constructed","Other annual metrics","Claims","Year","Annually","Required"]
[23,"Diabetes Care for Patients with Serious Mental Illness: Hemoglobin A1c (HbA1c) Poor Control (>9.0%) (HPCMI-AD)","Percentage of beneficiaries ages 18 to 75 with a serious mental illness and diabetes (type 1 and type 2) whose most recent Hemoglobin A1c (HbA1c) level during the measurement year is >9.0%.","Milestone 4","Established quality measure","Annual metrics that are an established quality measure","Claims\nMedical records","Year","Annually","Required"]
[24,"Screening for Depression and Follow-Up Plan: Age 18 and Older (CDF-AD)","Percentage of beneficiaries age 18 and older screened for depression on the date of the encounter using an age appropriate standardized depression screening tool, AND if positive, a follow-up plan is documented on the date of the positive screen.","Milestone 4","Established quality measure","Annual metrics that are an established quality measure","Claims\nMedical records","Year","Annually","Recommended"]
[25,"Screening for Depression and Follow-Up Plan: Ages 12–17 (CDF-CH)","Percentage of beneficiaries ages 12 to 17 screened for depression on the date of the encounter using an age appropriate standardized depression screening tool, AND if positive, a follow-up plan is documented on the date of the positive screen.","Milestone 4","Established quality measure","Annual metrics that are an established quality measure","Claims\nElectronic medical records","Year","Annually","Recommended"]
[26,"Access to Preventive/Ambulatory Health Services for Medicaid Beneficiaries With SMI","The percentage of Medicaid beneficiaries with SMI who had an ambulatory or preventive care visit during the measurement period.","Milestone 4","Established quality measure","Annual metrics that are an established quality measure","Claims","Year","Annually","Required"]
[27,"Tobacco Use Screening and Follow-up for People with SMI or Alcohol or Other Drug Dependence","The percentage of patients 18 years and older with a serious mental illness or alcohol or other drug dependence who received a screening for tobacco use and follow-up for those identified as a current tobacco user. Two rates are reported:\n• Percentage of adults with SMI who received a screening for tobacco use and follow-up for those identified as a current tobacco user\n• Percentage of adults with AOD who received a screening for tobacco use and follow-up for those identified as a current tobacco user","Milestone 4","Established quality measure","Annual metrics that are an established quality measure","Claims","Year","Annually","Recommended"]
[28,"Alcohol Screening and Follow-up for People with SMI","The percentage of patients 18 years and older with a serious mental illness, who were screened for unhealthy alcohol use and received brief counseling or other follow-up care if identified as an unhealthy alcohol user.","Milestone 4","Established quality measure","Annual metrics that are an established quality measure","Claims","Year","Annually","Recommended"]
[29,"Metabolic Monitoring for Children and Adolescents on Antipsychotics","The percentage of children and adolescents 1-17 years of age with ongoing antipsychotic medication use who had metabolic testing during the year.","Milestone 4","Established quality measure","Annual metrics that are an established quality measure","Claims","Year","Annually","Required"]
[30,"Follow-Up Care for Adult Medicaid Beneficiaries Who are Newly Prescribed an Antipsychotic Medication","Percentage of new antipsychotic prescriptions for Medicaid beneficiaries age 18 years and older who have completed a follow-up visit with a provider with prescribing authority within four weeks (28 days) of prescription of an antipsychotic medication.","Milestone 4","Established quality measure","Annual metrics that are an established quality measure","Claims","Year","Annually","Required"]
[31,"Use of Multiple Concurrent Antipsychotics in Children and Adolescents (APC-CH)","Percentage of children and adolescents ages 1 to 17 who were treated with antipsychotic medications and who were on two or more concurrent antipsychotic medications for at least 90 consecutive days during the measurement year.","Milestone 4","Established quality measure","Annual metrics that are an established quality measure","Claims","Year","Annually","Required"]
[32,"Total Costs Associated With Mental Health Services Among Beneficiaries With SMI/SED - Not Inpatient or Residential  ","Total Medicaid costs for non-inpatient or residential services for mental health, among beneficiaries in the demonstration or with SMI/SED during the measurement period. ","Other SMI/SED metrics","CMS-constructed","Other annual metrics","Claims","Year","Annually","Required"]
[33,"Total Costs Associated With Mental Health Services Among Beneficiaries With SMI/SED - Inpatient or Residential   ","Total Medicaid costs for inpatient or residential services for mental health among beneficiaries with SMI/SED during the measurement period. ","Other SMI/SED metrics","CMS-constructed","Other annual metrics","Claims","Year","Annually","Required"]
[34,"Per Capita Costs Associated With Mental Health Services Among Beneficiaries With SMI/SED - Not Inpatient or Residential ","Per capita costs for non-inpatient, non-residential services for mental health, among beneficiaries with SMI/SED during the measurement period.","Other SMI/SED metrics","CMS-constructed","Other annual metrics","Claims","Year","Annually","Required"]
[35,"Per Capita Costs Associated With Mental Health Services Among Beneficiaries With SMI/SED - Inpatient or Residential ","Per capita costs for not inpatient or residential services for mental health, among beneficiaries with SMI/SED during the measurement period.","Other SMI/SED metrics","CMS-constructed","Other annual metrics","Claims","Year","Annually","Required"]
[36,"Grievances Related to Services for SMI/SED ","Number of grievances filed during the measurement period that are related to services for SMI/SED.","Other SMI/SED metrics","CMS-constructed","Grievances and appeals","Administrative records","Quarter","Quarterly","Required"]
[37,"Appeals Related to Services for SMI/SED","Number of appeals filed during the measurement period that are related to services for SMI/SED.","Other SMI/SED metrics","CMS-constructed","Grievances and appeals","Administrative records","Quarter","Quarterly","Required"]
[38,"Critical Incidents Related to Services for SMI/SED ","Number of critical incidents filed during the measurement period that are related to services for SMI/SED.","Other SMI/SED metrics","CMS-constructed","Grievances and appeals","Administrative records","Quarter","Quarterly","Required"]
[39,"Total Costs Associated With Treatment for Mental Health in an IMD Among Beneficiaries With SMI/SED","Total Medicaid costs for beneficiaries with SMI/SED who had claims for inpatient or residential treatment for mental health in an IMD during the reporting year.","Other SMI/SED metrics","CMS-constructed","Other annual metrics","Claims","Year","Annually","Required"]
[40,"Per Capita Costs Associated With Treatment for Mental Health in an IMD Among Beneficiaries With SMI/SED","Per capita Medicaid costs for beneficiaries with SMI/SED who had claims for inpatient or residential treatment for mental health in an IMD during the reporting year.","Other SMI/SED metrics","CMS-constructed","Other annual metrics","Claims","Year","Annually","Required"]
["Q1","[Insert selected metric(s) for health IT question 1]",null,"Health IT","State-identified",{"$nulls":4},"Required"]
["Q2","[Insert selected metric(s) for health IT question 2]",null,"Health IT","State-identified",{"$nulls":4},"Required"]
["Q3","[Insert selected metric(s) for health IT question 3]",null,"Health IT","State-identified",{"$nulls":4},"Required"]
[]
["End of workbook"]

{"sheet":"Protocol-SMI & SED definitions","index":2,"n_rows":20,"n_cols":3,"rows_kept":20,"merged":[[10,0,10,2],[11,0,11,2]]}
[]
["Medicaid Section 1115 SMI/SED Demonstration Protocol - SMI & SED definitions"]
["State","[Enter State Name]"]
["Demonstration Name","[Enter Demonstration Name]"]
["Demonstration Year (DY)","[Enter Demonstration Year] (Format: DY1, DY2, DY3, etc.)"]
["Calendar Dates for  DY","[Enter Calendar Dates for Demonstration Year] (Format: MM/DD/YYYY - MM/DD/YYYY)"]
["Reporting Period","[Enter Reporting Period] (Format: Q1, Q2, Q3, Q4)"]
["Calendar Dates for Reporting Period ","[Enter Calendar Dates for Reporting Period (Format: MM/DD/YYYY - MM/DD/YYYY)"]
["Submitted on ","[Enter Date] (Format: MM/DD/YYYY)"]
[]
["Narrative description of the SMI/SED demonstration population"]
["EXAMPLEa\nAdults age 18 or older with serious mental illness or children under the age of 18 with a serious emotional disturbance living within the state."]
[".","Serious Mental Illness (SMI)","Serious Emotional Disturbance (SED)"]
["Narrative description of how the state defines the population for purposes of monitoring (including included ages, diagnosis groups and associated service use requirements)","EXAMPLEa\n*At least one acute inpatient claim/encounter with any diagnosis of schizophrenia, bipolar I disorder, or major depression, OR\n*At least two visits in an outpatient, intensive outpatient (IOP), partial hospitalization (PH), emergency department (ED), or nonacute inpatient setting, on different dates of service, with any diagnosis of schizophrenia, OR\n*At least two visits in an outpatient, IOP, PH, ED, or nonacute inpatient setting on different dates of service with a diagnosis of bipolar I disorder. ","See SMI example for format and required information"]
["Codes used to identify populationb\n\nStates may use ICD-10 diagnosis codes or state-specific treatment, diagnosis, or other types of codes to identify the population. When applicable, states should supplement ICD-10 codes with state-specific codes.","EXAMPLEa\n*Schizophrenia: F20.0-F20.5, F20.81, F20.89\n*Major depression: F32.0 - F32.4, F33.0 - F33.3\n*Bipolar I disorder: F30.10-F30.13, F30.2 - F30.9","See SMI example for format and required information"]
["Procedure (e.g., CPT, HCPCS) or revenue codes used to identify/define service requirementsb \n\nIf the state is not using procedure or revenue codes, the state should include the data source(s) (e.g., state-specific codes) used to identify/define service requirements.","EXAMPLEa\n*Outpatient: 98960-98962, 99211-99215, G0155, G0176, G0177, G0409, 0510, 0513, 0515-0517","See SMI example for format and required information"]
["aThe examples are based on a definition of SMI from the National Committee for Quality Assurance (NCQA). The examples provided are intended to be illustrative only. The example codes provided are not comprehensive. "]
["bStates may choose to include codes as separate tabs in this workbook."]
["End of workbook"]
["   "]

{"sheet":"Report-Metrics reporting","index":3,"n_rows":107,"n_cols":61,"rows_kept":107,"merged":[[11,13,11,15],[11,16,11,18],[11,19,11,21],[11,22,11,24],[11,25,11,27],[11,28,11,30],[11,31,11,33],[11,34,11,36],[11,37,11,39],[11,40,11,42],[11,43,11,45],[11,46,11,48],[11,49,11,51],[11,52,11,54],[11,55,11,57],[11,58,11,60],[14,0,15,0],[14,1,15,1],[14,3,15,3],[14,4,15,4],[14,5,15,5],[14,6,15,6],[21,0,23,0],[21,1,23,1],[21,3,23,3],[21,4,23,4],[21,5,23,5],[24,0,26,0],[24,1,26,1],[24,3,26,3],[24,4,26,4],[24,5,26,5],[27,0,29,0],[27,1,29,1],[27,3,29,3],[27,4,29,4],[27,5,29,5],[30,0,32,0],[30,1,32,1],[30,3,32,3],[30,4,32,4],[30,5,32,5],[33,0,35,0],[33,1,35,1],[33,3,35,3],[33,4,35,4],[33,5,35,5],[36,0,38,0],[36,1,38,1],[36,3,38,3],[36,4,38,4],[36,5,38,5],[39,0,41,0],[39,1,41,1],[39,2,41,2],[39,3,41,3],[39,4,41,4],[39,5,41,5],[39,6,41,6],[39,7,41,7],[39,8,41,8],[39,9,41,9],[39,10,41,10],[42,0,44,0],[42,1,44,1],[42,2,44,2],[42,3,44,3],[42,4,44,4],[42,5,44,5],[42,6,44,6],[42,7,44,7],[42,8,44,8],[42,9,44,9],[42,10,44,10],[45,0,47,0],[45,1,47,1],[45,2,47,2],[45,3,47,3],[45,4,47,4],[45,5,47,5],[45,6,47,6],[45,7,47,7],[45,8,47,8],[45,9,47,9],[45,10,47,10],[48,0,50,0],[48,1,50,1],[48,2,50,2],[48,3,50,3],[48,4,50,4],[48,5,50,5],[48,6,50,6],[48,7,50,7],[48,8,50,8],[48,9,50,9],[48,10,50,10],[51,0,53,0],[51,1,53,1],[51,2,53,2],[51,3,53,3],[51,4,53,4],[51,5,53,5],[51,6,53,6],[51,7,53,7],[51,8,53,8],[51,9,53,9],[51,10,53,10],[54,0,56,0],[54,1,56,1],[54,2,56,2],[54,3,56,3],[54,4,56,4],[54,5,56,5],[54,6,56,6],[54,7,56,7],[54,8,56,8],[54,9,56,9],[54,10,56,10],[57,0,60,0],[57,1,60,1],[57,3,60,3],[57,4,60,4],[57,5,60,5],[61,0,64,0],[61,1,64,1],[61,3,64,3],[61,4,64,4],[61,5,64,5],[66,0,68,0],[66,1,68,1],[66,2,68,2],[66,3,68,3],[66,4,68,4],[66,5,68,5],[66,6,68,6],[66,7,68,7],[66,8,68,8],[66,9,68,9],[66,10,68,10],[74,0,76,0],[74,1,76,1],[74,3,76,3],[74,4,76,4],[74,5,76,5],[94,0,94,4]]}
[]
[null,"Medicaid Section 1115 SED/SMI Demonstration Report - Metrics reporting"]
[null,"State","[Enter State Name]"]
[null,"Demonstration Name","[Enter Demonstration Name]"]
[null,"Demonstration Year (DY)","[Enter Demonstration Year] (Format: DY1, DY2, DY3, etc.)"]
[null,"Calendar Dates for  DY","[Enter Calendar Dates for Demonstration Year] (Format: MM/DD/YYYY - MM/DD/YYYY)"]
[null,"Reporting Period","[Enter Reporting Period] (Format: Q1, Q2, Q3, Q4)"]
[null,"Calendar Dates for Reporting Period ","[Enter Calendar Dates for Reporting Period (Format: MM/DD/YYYY - MM/DD/YYYY)"]
[null,"Submitted on ","[Enter Date] (Format: MM/DD/YYYY)"]
[]
["Serious Mental Illness/Serious Emotional Disturbance (SMI/SED) Metricsa"]
[{"$nulls":13},"Demonstration",null,null,"Modeled",null,null,"Standardized definition of SMI",null,null,"State-specific definition of SMI",null,null,"Children (Age <16)",null,null,"Transition-age youth (Age 16-24)",null,null,"Adults (Age 25-64)",null,null,"Older adults (Age 65+)",null,null,"Dual-eligible (Medicare-Medicaid eligible)",null,null,"Medicaid only",null,null,"Eligible for Medicaid on the basis of disability ",null,null,"Not eligible for Medicaid on the basis of disability ",null,null,"Criminally involved",null,null,"Not criminally involved",null,null,"Co-occurring SUD",null,null,"Co-occurring physical conditions"]
["# ","Metric name","Metric description","Milestone or reporting topic","Metric type","Reporting category","Data source","Technical specification manual version","Attest that reporting matches CMS-provided specification (Y/N)b","Describe any deviations from CMS-provided specifications","Reporting issue  (Y/N)\n(further describe in data and reporting issues tab)","Measurement period (month, quarter, yearc)","Dates covered by measurement period (MM/DD/YYYY-MM/DD/YYYY)","Denominator","Numerator or count","Rate/Percentaged","Denominator","Numerator or count","Rate/Percentaged","Denominator","Numerator or count","Rate/Percentaged","Denominator","Numerator or count","Rate/Percentaged","Denominator","Numerator or count","Rate/Percentaged","Denominator","Numerator or count","Rate/Percentaged","Denominator","Numerator or count","Rate/Percentaged","Denominator","Numerator or count","Rate/Percentaged","Denominator","Numerator or count","Rate/Percentaged","Denominator","Numerator or count","Rate/Percentaged","Denominator","Numerator or count","Rate/Percentaged","Denominator","Numerator or count","Rate/Percentaged","Denominator","Numerator or count","Rate/Percentaged","Denominator","Numerator or count","Rate/Percentaged","Denominator","Numerator or count","Rate/Percentaged","Denominator","Numerator or count","Rate/Percentaged"]
[null,"SMI & SED definitions"]
[1,"SUD Screening of Beneficiaries Admitted to Psychiatric Hospitals or Residential Treatment Settings (SUB-2)","\nSUB-2: Patients who screened positive for unhealthy alcohol use who received or refused a brief intervention during the hospital stay.\n\n","Milestone 1","Established quality measure","Annual metrics that are an established quality measure","Medical record review or claims",{"$nulls":4},"Year",{"$nulls":3},{"$f":"O15/N15","v":{"$error":"#DIV/0!"}},null,null,{"$f":"R15/Q15","v":{"$error":"#DIV/0!"}}]
[null,null,"SUB-2a: Patients who received the brief intervention during the hospital stay.",{"$nulls":8},"Year",{"$nulls":3},{"$f":"O16/N16","v":{"$error":"#DIV/0!"}},null,null,{"$f":"R16/Q16","v":{"$error":"#DIV/0!"}}]
[2,"Use of First-Line Psychosocial Care for Children and Adolescents on Antipsychotics (APP-CH)","Percentage of children and adolescents ages 1 to 17 who had a new prescription for an antipsychotic medication and had documentation of psychosocial care as first-line treatment. ","Milestone 1","Established quality measure","Annual metrics that are an established quality measure","Claims",{"$nulls":4},"Year",{"$nulls":3},{"$f":"O17/N17","v":{"$error":"#DIV/0!"}},null,null,{"$f":"R17/Q17","v":{"$error":"#DIV/0!"}}]
[3,"All-Cause Emergency Department Utilization Rate for Medicaid Beneficiaries who may Benefit From Integrated Physical and Behavioral Health Care (PMH-20)","Number of all-cause ED visits per 1,000 beneficiary months among adult Medicaid beneficiaries age 18 and older who meet the eligibility criteria of beneficiaries with SMI.","Milestone 2","Established quality measure","Annual metrics that are an established quality measure","Claims",{"$nulls":4},"Year"]
[4,"30-Day All-Cause Unplanned Readmission Following Psychiatric Hospitalization in an Inpatient Psychiatric Facility (IPF)","The rate of unplanned, 30-day, readmission rate for demonstration beneficiaries with a primary discharge diagnosis of a psychiatric disorder or dementia/Alzheimer’s disease. The measurement period used to identify cases in the measure population is 12 months from January 1 through December 31. ","Milestone 2","Established quality measure","Annual metrics that are an established quality measure","Claims",{"$nulls":4},"Year",{"$nulls":3},{"$f":"O19/N19","v":{"$error":"#DIV/0!"}},null,null,{"$f":"R19/Q19","v":{"$error":"#DIV/0!"}}]
[5,"Medication Reconciliation Upon Admission","Percentage of patients for whom a designated prior to admission (PTA) medication list was generated by referencing one or more external sources of PTA medications and for which all PTA medications have a documented reconciliation action by the end of Day 2 of the hospitalization.","Milestone 2","Established quality measure","Annual metrics that are an established quality measure","Electronic/paper medical records",{"$nulls":4},"Year",{"$nulls":3},{"$f":"O20/N20","v":{"$error":"#DIV/0!"}},null,null,{"$f":"R20/Q20","v":{"$error":"#DIV/0!"}}]
[6,"Medication Continuation Following Inpatient Psychiatric Discharge","This measure assesses whether psychiatric patients admitted to an inpatient psychiatric facility (IPF) for major depressive disorder (MDD), schizophrenia, or bipolar disorder filled a prescription for evidence-based medication within 2 days prior to discharge and 30 days post-discharge. ","Milestone 2","Established quality measure","Annual metrics that are an established quality measure","Claims",{"$nulls":4},"Year",{"$nulls":3},{"$f":"O21/N21","v":{"$error":"#DIV/0!"}},null,null,{"$f":"R21/Q21","v":{"$error":"#DIV/0!"}}]
[7,"Follow-up After Hospitalization for Mental Illness: Ages 6-17 (FUH-CH)  ","Percentage of discharges for children ages 6 to 17 who were hospitalized for treatment of selected mental illness or intentional self-harm diagnoses and who had a follow-up visit with a mental health practitioner. Two rates are reported: \n","Milestone 2","Established quality measure","Annual metrics that are an established quality measure"]
[null,null,"Percentage of discharges for which the child received follow-up within 30 days after discharge.",{"$nulls":3},"Claims",{"$nulls":4},"Year",{"$nulls":3},{"$f":"O23/N23","v":{"$error":"#DIV/0!"}},null,null,{"$f":"R23/Q23","v":{"$error":"#DIV/0!"}}]
[null,null,"Percentage of discharges for which the child received follow-up within 7 days after discharge.",{"$nulls":3},"Claims",{"$nulls":4},"Year",{"$nulls":3},{"$f":"O24/N24","v":{"$error":"#DIV/0!"}},null,null,{"$f":"R24/Q24","v":{"$error":"#DIV/0!"}}]
[8,"Follow-up After Hospitalization for Mental Illness: Age 18 and Older (FUH-AD)","Percentage of discharges for beneficiaries age 18 years and older who were hospitalized for treatment of selected mental illness diagnoses or intentional self-harm and who had a follow-up visit with a mental health practitioner. Two rates are reported:\n","Milestone 2","Established quality measure","Annual metrics that are an established quality measure"]
[null,null,"Percentage of discharges for which the beneficiary received follow-up within 30 days after discharge. ",{"$nulls":3},"Claims",{"$nulls":4},"Year",{"$nulls":3},{"$f":"O26/N26","v":{"$error":"#DIV/0!"}},null,null,{"$f":"R26/Q26","v":{"$error":"#DIV/0!"}}]
[null,null,"Percentage of discharges for which the beneficiary received follow-up within 7 days after discharge. ",{"$nulls":3},"Claims",{"$nulls":4},"Year",{"$nulls":3},{"$f":"O27/N27","v":{"$error":"#DIV/0!"}},null,null,{"$f":"R27/Q27","v":{"$error":"#DIV/0!"}}]
[9,"Follow-up After Emergency Department Visit for Alcohol and Other Drug Abuse (FUA-AD)","Percentage of emergency department (ED) visits for beneficiaries age 18 and older with a principal diagnosis of alcohol or other drug (AOD) abuse dependence who had a follow-up visit for AOD abuse or dependence. Two rates are reported: ","Milestone 2","Established quality measure","Annual metrics that are an established quality measure"]
[null,null,"Percentage of ED visits for AOD abuse or dependence for which the beneficiary received follow-up within 30 days of the ED visit.",{"$nulls":3},"Claims",{"$nulls":4},"Year",{"$nulls":3},{"$f":"O29/N29","v":{"$error":"#DIV/0!"}},null,null,{"$f":"R29/Q29","v":{"$error":"#DIV/0!"}}]
[null,null," Percentage of ED visits for AOD abuse or dependence for which the beneficiary received follow-up within 7 days of the ED visit.",{"$nulls":3},"Claims",{"$nulls":4},"Year",{"$nulls":3},{"$f":"O30/N30","v":{"$error":"#DIV/0!"}},null,null,{"$f":"R30/Q30","v":{"$error":"#DIV/0!"}}]
[10,"Follow-Up After Emergency Department Visit for Mental Illness  (FUM-AD)","Percentage of emergency department (ED) visits for beneficiaries age 18 and older with a principal diagnosis of mental illness or intentional self-harm and who had a follow-up visit for mental illness. Two rates are reported: \n\n","Milestone 2","Established quality measure","Annual metrics that are an established quality measure"]
[null,null," Percentage of ED visits for mental illness for which the beneficiary received follow-up within 30 days of the ED visit.",{"$nulls":3},"Claims",{"$nulls":4},"Year",{"$nulls":3},{"$f":"O32/N32","v":{"$error":"#DIV/0!"}},null,null,{"$f":"R32/Q32","v":{"$error":"#DIV/0!"}}]
[null,null,"Percentage of ED visits for mental illness for which the beneficiary received follow-up within 7 days of the ED visit.",{"$nulls":3},"Claims",{"$nulls":4},"Year",{"$nulls":3},{"$f":"O33/N33","v":{"$error":"#DIV/0!"}},null,null,{"$f":"R33/Q33","v":{"$error":"#DIV/0!"}}]
[11,"Suicide or Overdose Death Within 7 and 30 Days of Discharge From an Inpatient Facility or Residential Treatment for Mental Health Among Beneficiaries With SMI or SED (count) ","Number of suicide or overdose deaths among Medicaid beneficiaries with SMI or SED within 7 and 30 days of discharge from an inpatient facility or residential stay for mental health. ","Milestone 2","CMS-constructed","Other annual metrics"]
[null,null,"7  days of discharge from an inpatient facility or residential stay for mental health. ",{"$nulls":3},"State data on cause of death",{"$nulls":4},"Year"]
[null,null,"30 days of discharge from an inpatient facility or residential stay for mental health. ",{"$nulls":3},"State data on cause of death",{"$nulls":4},"Year"]
[12,"Suicide or Overdose Death Within 7 and 30 Days of Discharge From an Inpatient Facility or Residential Treatment for Mental Health Among Beneficiaries With SMI or SED (rate) ","Rate of suicide or overdose deaths among Medicaid beneficiaries with SMI or SED within 7 and 30 days of discharge from an inpatient facility or residential stay for mental health. ","Milestone 2","CMS-constructed","Other annual metrics"]
[null,null,"7  days of discharge from an inpatient facility or residential stay for mental health. ",{"$nulls":3},"State data on cause of death",{"$nulls":4},"Year",{"$nulls":3},{"$f":"O38/N38","v":{"$error":"#DIV/0!"}},null,null,{"$f":"R38/Q38","v":{"$error":"#DIV/0!"}},{"$nulls":8},{"$f":"AA38/Z38","v":{"$error":"#DIV/0!"}},null,null,{"$f":"AD38/AC38","v":{"$error":"#DIV/0!"}},null,null,{"$f":"AG38/AF38","v":{"$error":"#DIV/0!"}},null,null,{"$f":"AJ38/AI38","v":{"$error":"#DIV/0!"}}]
[null,null,"30 days of discharge from an inpatient facility or residential stay for mental health. ",{"$nulls":3},"State data on cause of death",{"$nulls":4},"Year",{"$nulls":3},{"$f":"O39/N39","v":{"$error":"#DIV/0!"}},null,null,{"$f":"R39/Q39","v":{"$error":"#DIV/0!"}},{"$nulls":8},{"$f":"AA39/Z39","v":{"$error":"#DIV/0!"}},null,null,{"$f":"AD39/AC39","v":{"$error":"#DIV/0!"}},null,null,{"$f":"AG39/AF39","v":{"$error":"#DIV/0!"}},null,null,{"$f":"AJ39/AI39","v":{"$error":"#DIV/0!"}}]
[13,"Mental Health Services Utilization -  Inpatient","Number of beneficiaries in the demonstration or with SMI/SED who use inpatient services related to mental health during the measurement period.","Milestone 3","CMS-constructed","Other monthly and quarterly metrics","Claims",{"$nulls":4},"Month 1"]
[{"$nulls":11},"Month 2"]
[{"$nulls":11},"Month 3"]
[14,"Mental Health Services Utilization -  Intensive Outpatient and Partial Hospitalization","Number of beneficiaries in the demonstration or with SMI/SED who used intensive outpatient and/or partial hospitalization services related to mental health during the measurement period.","Milestone 3","CMS-constructed","Other monthly and quarterly metrics","Claims",{"$nulls":4},"Month 1"]
[{"$nulls":11},"Month 2"]
[{"$nulls":11},"Month 3"]
[15,"Mental Health Services Utilization -  Outpatient","Number of beneficiaries in the demonstration or with SMI/SED who used outpatient services related to mental health during the measurement period.","Milestone 3","CMS-constructed","Other monthly and quarterly metrics","Claims",{"$nulls":4},"Month 1"]
[{"$nulls":11},"Month 2"]
[{"$nulls":11},"Month 3"]
[16,"Mental Health Services Utilization -  ED","Number of beneficiaries in the demonstration or with SMI/SED who use emergency department services for mental health during the measurement period.","Milestone 3","CMS-constructed","Other monthly and quarterly metrics","Claims",{"$nulls":4},"Month 1"]
[{"$nulls":11},"Month 2"]
[{"$nulls":11},"Month 3"]
[17,"Mental Health Services Utilization -  Telehealth","Number of beneficiaries in the demonstration or with SMI/SED who used telehealth services related to mental health during the measurement period.","Milestone 3","CMS-constructed","Other monthly and quarterly metrics","Claims",{"$nulls":4},"Month 1"]
[{"$nulls":11},"Month 2"]
[{"$nulls":11},"Month 3"]
[18,"Mental Health Services Utilization -  Any Services","Number of beneficiaries in the demonstration or with SMI/SED who used any services related to mental health during the measurement period. ","Milestone 3","CMS-constructed","Other monthly and quarterly metrics","Claims",{"$nulls":4},"Month 1"]
[{"$nulls":11},"Month 2"]
[{"$nulls":11},"Month 3"]
["19a","Average Length of Stay in IMDs","Average length of stay (ALOS) for beneficiaries with SMI discharged from an inpatient or residential stay in an IMD. Three rates are reported:","Milestone 3","CMS-constructed","Other annual metrics"]
[null,null,"ALOS for all IMDs and populations",{"$nulls":3},"Claims \nState-specific IMD database",{"$nulls":4},"Year",{"$nulls":3},{"$f":"O59/N59","v":{"$error":"#DIV/0!"}},null,null,{"$f":"R59/Q59","v":{"$error":"#DIV/0!"}}]
[null,null,"ALOS among short-term stays (less than or equal to 60 days)",{"$nulls":3},"Claims \nState-specific IMD database",{"$nulls":4},"Year",{"$nulls":3},{"$f":"O60/N60","v":{"$error":"#DIV/0!"}},null,null,{"$f":"R60/Q60","v":{"$error":"#DIV/0!"}}]
[null,null,"ALOS among long-term stays (greater than 60 days)",{"$nulls":3},"Claims \nState-specific IMD database",{"$nulls":4},"Year",{"$nulls":3},{"$f":"O61/N61","v":{"$error":"#DIV/0!"}},null,null,{"$f":"R61/Q61","v":{"$error":"#DIV/0!"}}]
["19b","Average Length of Stay in IMDs (IMDs receiving FFP only)","Average length of stay (ALOS) for beneficiaries with SMI discharged from an inpatient or residential stay in an IMD receiving federal financial participation (FFP). Three rates are reported:","Milestone 3","CMS-constructed","Other annual metrics"]
[null,null,"ALOS for all IMDs and populations",{"$nulls":3},"Claims \nState-specific IMD database",{"$nulls":4},"Year",{"$nulls":3},{"$f":"O63/N63","v":{"$error":"#DIV/0!"}},null,null,{"$f":"R63/Q63","v":{"$error":"#DIV/0!"}}]
[null,null,"ALOS among short-term stays (less than or equal to 60 days)",{"$nulls":3},"Claims \nState-specific IMD database",{"$nulls":4},"Year",{"$nulls":3},{"$f":"O64/N64","v":{"$error":"#DIV/0!"}},null,null,{"$f":"R64/Q64","v":{"$error":"#DIV/0!"}}]
[null,null,"ALOS among long-term stays (greater than 60 days)",{"$nulls":3},"Claims \nState-specific IMD database",{"$nulls":4},"Year",{"$nulls":3},{"$f":"O65/N65","v":{"$error":"#DIV/0!"}},null,null,{"$f":"R65/Q65","v":{"$error":"#DIV/0!"}}]
[20,"Beneficiaries With SMI/SED Treated in an IMD for Mental Health ","Number of beneficiaries with SMI/SED who have a claim for inpatient or residential treatment for mental health in an IMD during the reporting year.","Milestone 3","CMS-constructed","Other annual metrics","Claims",{"$nulls":4},"Year"]
[21,"Count of Beneficiaries With SMI/SED (monthly)","Count the number of unique beneficiaries (de-duplicated total) enrolled in the measurement period who have qualifying facility, or provider claims have sufficient qualifying facility, or provider claims to qualify as having SMI/SED-related treatment during the measurement period and/or in the 11 months before the measurement period.","Milestone 4","CMS-constructed","Other monthly and quarterly metrics","Claims",{"$nulls":4},"Month 1"]
[{"$nulls":11},"Month 2"]
[{"$nulls":11},"Month 3"]
[22,"Count of Beneficiaries With SMI/SED (annually)","Number of beneficiaries in the demonstration (with a diagnosis and service history indicating SMI/SED) during the measurement period and/or in the 11 months before the measurement period.","Milestone 4","CMS-constructed","Other annual metrics","Claims",{"$nulls":4},"Year"]
[23,"Diabetes Care for Patients with Serious Mental Illness: Hemoglobin A1c (HbA1c) Poor Control (>9.0%) (HPCMI-AD)","Percentage of beneficiaries ages 18 to 75 with a serious mental illness and diabetes (type 1 and type 2) whose most recent Hemoglobin A1c (HbA1c) level during the measurement year is >9.0%.","Milestone 4","Established quality measure","Annual metrics that are an established quality measure","Claims\nMedical records",{"$nulls":4},"Year",{"$nulls":3},{"$f":"O71/N71","v":{"$error":"#DIV/0!"}},null,null,{"$f":"R71/Q71","v":{"$error":"#DIV/0!"}}]
[24,"Screening for Depression and Follow-Up Plan: Age 18 and Older (CDF-AD)","Percentage of beneficiaries age 18 and older screened for depression on the date of the encounter using an age appropriate standardized depression screening tool, AND if positive, a follow-up plan is documented on the date of the positive screen.","Milestone 4","Established quality measure","Annual metrics that are an established quality measure","Claims\nMedical records",{"$nulls":4},"Year",{"$nulls":3},{"$f":"O72/N72","v":{"$error":"#DIV/0!"}},null,null,{"$f":"R72/Q72","v":{"$error":"#DIV/0!"}}]
[25,"Screening for Depression and Follow-Up Plan: Ages 12–17 (CDF-CH)","Percentage of beneficiaries ages 12 to 17 screened for depression on the date of the encounter using an age appropriate standardized depression screening tool, AND if positive, a follow-up plan is documented on the date of the positive screen.","Milestone 4","Established quality measure","Annual metrics that are an established quality measure","Claims\nElectronic medical records",{"$nulls":4},"Year",{"$nulls":3},{"$f":"O73/N73","v":{"$error":"#DIV/0!"}},null,null,{"$f":"R73/Q73","v":{"$error":"#DIV/0!"}}]
[26,"Access to Preventive/Ambulatory Health Services for Medicaid Beneficiaries With SMI","The percentage of Medicaid beneficiaries with SMI who had an ambulatory or preventive care visit during the measurement period.","Milestone 4","Established quality measure","Annual metrics that are an established quality measure","Claims",{"$nulls":4},"Year",{"$nulls":3},{"$f":"O74/N74","v":{"$error":"#DIV/0!"}},null,null,{"$f":"R74/Q74","v":{"$error":"#DIV/0!"}}]
[27,"Tobacco Use Screening and Follow-up for People with Serious Mental Illness or Alcohol or Other Drug Dependence","The percentage of patients 18 years and older with a serious mental illness or alcohol or other drug dependence who received a screening for tobacco use and follow-up for those identified as a current tobacco user. Two rates are reported:","Milestone 4","Established quality measure","Annual metrics that are an established quality measure"]
[null,null,"Percentage of adults with SMI who received a screening for tobacco use and follow-up for those identified as a current tobacco user",{"$nulls":3},"Claims",{"$nulls":4},"Year",{"$nulls":3},{"$f":"O76/N76","v":{"$error":"#DIV/0!"}},null,null,{"$f":"R76/Q76","v":{"$error":"#DIV/0!"}}]
[null,null,"Percentage of adults with AOD who received a screening for tobacco use and follow-up for those identified as a current tobacco user",{"$nulls":3},"Claims",{"$nulls":4},"Year",{"$nulls":3},{"$error":"#DIV/0!"},null,null,{"$error":"#DIV/0!"}]
[28,"Alcohol Screening and Follow-up for People with Serious Mental Illness","The percentage of patients 18 years and older with a serious mental illness, who were screened for unhealthy alcohol use and received brief counseling or other follow-up care if identified as an unhealthy alcohol user.","Milestone 4","Established quality measure","Annual metrics that are an established quality measure","Claims",{"$nulls":4},"Year",{"$nulls":3},{"$error":"#DIV/0!"},null,null,{"$error":"#DIV/0!"}]
[29,"Metabolic Monitoring for Children and Adolescents on Antipsychotics","The percentage of children and adolescents 1-17 years of age with ongoing antipsychotic medication use who had metabolic testing during the year.","Milestone 4","Established quality measure","Annual metrics that are an established quality measure","Claims",{"$nulls":4},"Year",{"$nulls":3},{"$error":"#DIV/0!"},null,null,{"$error":"#DIV/0!"}]
[30,"Follow-Up Care for Adult Medicaid Beneficiaries Who are Newly Prescribed an Antipsychotic Medication","Percentage of new antipsychotic prescriptions for Medicaid beneficiaries age 18 years and older who have completed a follow-up visit with a provider with prescribing authority within four weeks (28 days) of prescription of an antipsychotic medication.","Milestone 4","Established quality measure","Annual metrics that are an established quality measure","Claims",{"$nulls":4},"Year",{"$nulls":3},{"$error":"#DIV/0!"},null,null,{"$error":"#DIV/0!"}]
[31,"Use of Multiple Concurrent Antipsychotics in Children and Adolescents (APC-CH)","Percentage of children and adolescents ages 1 to 17 who were treated with antipsychotic medications and who were on two or more concurrent antipsychotic medications for at least 90 consecutive days during the measurement year.","Milestone 4","Established quality measure","Annual metrics that are an established quality measure","Claims",{"$nulls":4},"Year",{"$nulls":3},{"$error":"#DIV/0!"},null,null,{"$error":"#DIV/0!"}]
[32,"Total Costs Associated With Mental Health Services Among Beneficiaries With SMI/SED - Not Inpatient or Residential  ","Total Medicaid costs for non-inpatient or residential services for mental health, among beneficiaries in the demonstration or with SMI/SED during the measurement period. ","Other SMI/SED metrics","CMS-constructed","Other annual metrics","Claims",{"$nulls":4},"Year"]
[33,"Total Costs Associated With Mental Health Services Among Beneficiaries With SMI/SED - Inpatient or Residential   ","Total Medicaid costs for inpatient or residential services for mental health among beneficiaries with SMI/SED during the measurement period. ","Other SMI/SED metrics","CMS-constructed","Other annual metrics","Claims",{"$nulls":4},"Year"]
[34,"Per Capita Costs Associated With Mental Health Services Among Beneficiaries With SMI/SED - Not Inpatient or Residential ","Per capita costs for non-inpatient, non-residential services for mental health, among beneficiaries with SMI/SED during the measurement period.","Other SMI/SED metrics","CMS-constructed","Other annual metrics","Claims",{"$nulls":4},"Year"]
[35,"Per Capita Costs Associated With Mental Health Services Among Beneficiaries With SMI/SED - Inpatient or Residential ","Per capita costs for not inpatient or residential services for mental health, among beneficiaries with SMI/SED during the measurement period.","Other SMI/SED metrics","CMS-constructed","Other annual metrics","Claims",{"$nulls":4},"Year"]
[36,"Grievances Related to Services for SMI/SED ","Number of grievances filed during the measurement period that are related to services for SMI/SED. ","Other SMI/SED metrics","CMS-constructed","Grievances and appeals","Administrative records",{"$nulls":4},"Quarter"]
[37,"Appeals Related to Services for SMI/SED","Number of appeals filed during the measurement period that are related to services for SMI/SED.","Other SMI/SED metrics","CMS-constructed","Grievances and appeals ","Administrative records",{"$nulls":4},"Quarter"]
[38,"Critical Incidents Related to Services for SMI/SED ","Number of critical incidents filed during the measurement period that are related to services for SMI/SED.","Other SMI/SED metrics","CMS-constructed","Grievances and appeals ","Administrative records",{"$nulls":4},"Quarter"]
[39,"Total Costs Associated With Treatment for Mental Health in an IMD Among Beneficiaries With SMI/SED","Total Medicaid costs for beneficiaries with SMI/SED who had claims for inpatient or residential treatment for mental health in an IMD during the reporting year.","Other SMI/SED metrics","CMS-constructed","Other annual metrics","Claims",{"$nulls":4},"Year"]
[40,"Per Capita Costs Associated With Treatment for Mental Health in an IMD Among Beneficiaries With SMI/SED","Per capita Medicaid costs for beneficiaries with SMI/SED who had claims for inpatient or residential treatment for mental health in an IMD during the reporting year.","Other SMI/SED metrics","CMS-constructed","Other annual metrics","Claims",{"$nulls":4},"Year"]
["Q1","Insert selected metric(s) related to key health IT question 1",null,"Health IT",null,"State-identified"]
["Q2","Insert selected metric(s) related to key health IT question 2",null,"Health IT",null,"State-identified"]
["Q3","Insert selected metric(s) related to key health IT question 3",null,"Health IT",null,"State-identified"]
[]
["Note: Licensee and states must prominently display the following notice on any display of Measure rates: \nThe MPT, FUH-CH, FUH-AD, FUA-AD, FUM-AD, AAP, APM, and APC measures (metrics #13, 14, 15, 16, 17, 18, 7, 8, 9, 10, 26, 29, 31) are Healthcare Effectiveness Data and Information Set (“HEDIS®”) measures that are owned and copyrighted by the National Committee for Quality Assurance (“NCQA”). NCQA makes no representations, warranties, or endorsement about the quality of any organization or physician that uses or reports performance measures and NCQA has no liability to anyone who relies on such measures or specifications.\n\nThe measure specification methodology used by CMS is different from NCQA’s methodology. NCQA has not validated the adjusted measure specifications but has granted CMS permission to adjust. Calculated measure results, based on the adjusted HEDIS specifications, may be called only “Uncertified, Unaudited HEDIS rates.”\n\nCertain non-NCQA measures in the CMS 1115  Serious Mental Illness/Serious Emotional Disturbance Demonstration contain HEDIS Value Sets (VS) developed by and included with the permission of the NCQA. Proprietary coding is contained in the VS. Users of the proprietary code sets should obtain all necessary licenses from the owners of these code sets. NCQA disclaims all liability for use or accuracy of the VS with the non-NCQA measures and any coding contained in the VS. \n"]
["a States should create a new metrics report for each reporting quarter."]
["b For state-identified metrics or the SMI & SED definitions states should attest that it is reporting as specified in its monitoring protocol."]
["c Report metrics that are one annual value for a demonstration year only in the report specified in the reporting schedule. "]
["d If applicable. See CMS-provided technical specifications."]
["e Enter any new models that will be reported after column BI; create new columns as needed."]
["End of workbook"]
[null,"Checks:"]
[null,"Numerator in #11 is equal to the numerator in #12. "]
[null,"Numerator in #32 is equal to the numerator in #34"]
[null,"Numerator in #33 is equal to the numerator in #35"]
[null,"Denominator in #34 and #35 is equal to #21 and #22."]
[null,"Numerator in #40 is equal to #39. "]

{"sheet":"Report-Data & reporting issues","index":4,"n_rows":27,"n_cols":7,"rows_kept":27,"merged":[[24,0,24,4]]}
[]
["Medicaid Section 1115 SMI/SED Demonstration Report - Data & reporting issues"]
["State","[Enter State Name]"]
["Demonstration Name","[Enter Demonstration Name]"]
["Demonstration Year (DY)","[Enter Demonstration Year] (Format: DY1, DY2, DY3, etc.)"]
["Calendar Dates for DY","[Enter Calendar Dates for Demonstration Year] (Format: MM/DD/YYYY - MM/DD/YYYY)"]
["Reporting Period","[Enter Reporting Period] (Format: Q1, Q2, Q3, Q4)"]
["Calendar Dates for Reporting Period ","[Enter Calendar Dates for Reporting Period (Format: MM/DD/YYYY - MM/DD/YYYY)"]
["Submitted on ","[Enter Date] (Format: MM/DD/YYYY)"]
[]
[]
["Milestone or reporting topic","Metric(s) impacted","Summary of issue","Date and report in which issue was first reported ","Estimated number of impacted beneficiaries","Known or suspected cause(s) of issue (if applicable)","Remediation plan and timeline for resolution (if applicable)/status update if issue previously reporteda"]
["Milestone 1","[Add rows as needed]"]
[]
["Milestone 2","[Add rows as needed]"]
[]
["Milestone 3","[Add rows as needed]"]
[]
["Milestone 4","[Add rows as needed]"]
[]
["SMI/SED health IT","[Add rows as needed]"]
[]
["Other SMI/SED-related metric","[Add rows as needed]"]
[]
["Note: Licensee and states must prominently display the following notice on any display of Measure rates: \nThe MPT, FUH-CH, FUH-AD, FUA-AD, FUM-AD, AAP, APM, and APC measures (metrics #13, 14, 15, 16, 17, 18, 7, 8, 9, 10, 26, 29, 31) are Healthcare Effectiveness Data and Information Set (“HEDIS®”) measures that are owned and copyrighted by the National Committee for Quality Assurance (“NCQA”). NCQA makes no representations, warranties, or endorsement about the quality of any organization or physician that uses or reports performance measures and NCQA has no liability to anyone who relies on such measures or specifications.\n\nThe measure specification methodology used by CMS is different from NCQA’s methodology. NCQA has not validated the adjusted measure specifications but has granted CMS permission to adjust. Calculated measure results, based on the adjusted HEDIS specifications, may be called only “Uncertified, Unaudited HEDIS rates.”\n\nCertain non-NCQA measures in the CMS 1115  Serious Mental Illness/Serious Emotional Disturbance Demonstration contain HEDIS Value Sets (VS) developed by and included with the permission of the NCQA. Proprietary coding is contained in the VS. Users of the proprietary code sets should obtain all necessary licenses from the owners of these code sets. NCQA disclaims all liability for use or accuracy of the VS with the non-NCQA measures and any coding contained in the VS. \n"]
["aThe state should also use this column to provide updates on any data or reporting issues described in previous reports. When applicable, the state should note when issues are resolved. If an issue was noted as resolved in the previous report, it should not be reported in the current report."]
["End of workbook"]

{"sheet":"Instructions - Avail assessment","index":5,"n_rows":95,"n_cols":3,"rows_kept":95,"merged":[[1,1,1,12],[2,1,5,1],[2,2,2,12],[3,2,3,12],[4,2,4,12],[5,2,5,12],[6,2,6,12],[7,2,7,12],[8,2,8,12],[9,2,9,12],[10,2,10,12],[11,2,11,12],[12,2,12,12],[13,2,13,12],[14,2,14,12],[15,2,15,12],[16,2,16,12],[17,2,17,12],[18,2,18,12],[19,2,19,12],[20,2,20,12],[21,2,21,12],[22,2,22,12],[23,2,23,12],[24,2,24,12],[25,2,25,12],[26,2,26,12],[27,2,27,12],[28,2,28,12],[29,2,29,12],[30,2,30,12],[31,2,31,12],[32,2,32,12],[33,2,33,12],[34,2,34,12],[35,2,35,12],[36,2,36,12],[37,2,37,12],[38,2,38,12],[39,2,39,12],[40,2,40,12],[41,2,41,12],[42,2,42,12],[43,2,43,12],[44,2,44,12],[45,2,45,12],[46,2,46,12],[47,2,47,12],[48,2,48,12],[49,2,49,12],[50,2,50,12],[51,2,51,12],[52,2,52,12],[53,2,53,12],[54,2,54,12],[55,2,55,12],[56,2,56,12],[57,2,57,12],[58,2,58,12],[59,2,59,12],[60,2,60,12],[61,2,61,12],[62,2,62,12],[63,2,63,12],[64,2,64,12],[65,2,65,12],[66,2,66,12],[67,2,67,12],[68,2,68,12],[69,2,69,12],[70,2,70,12],[71,2,71,12],[72,2,72,12],[73,2,73,12],[74,2,74,12],[75,2,75,12],[76,2,76,12],[77,2,77,12],[78,2,78,12],[79,2,79,12],[80,2,80,12],[81,2,81,12],[82,2,82,12],[83,2,83,12],[84,2,84,12],[85,2,85,12],[86,2,86,12],[87,2,87,12],[88,2,88,12],[89,2,89,12],[90,2,90,12],[91,2,91,12],[92,2,92,12],[93,2,93,12]]}
[]
[null,"Instructions for Completing the Assessment of the Availability of Mental Health Services (\"Availability Assessment\" tab)  "]
[null,"Before you begin:","The state will submit multiple availability assessments. The state will submit an initial assessment at the time of application and annual assessments thereafter. "]
[null,null,"The state should select a consistent month in each year to populate the information in the availability assessment (e.g. provide initial information based on counts covering August 2019, and update the information based on counts covering August 2020, August 2021, August 2022, and August 2023).  "]
[null,null,"Enter the state name, data entry date(s), and time period reflected in the availability assessment in cells C1-3."]
[null,null,"To add rows for additional geographic designations, click the \"Add row\" button.  "]
[null,"Column   ","Instructions"]
[null,"B","In column B, enter each geographic designation starting in cell B8. Add rows as needed to capture all geographic designations. Geographic designation means a state-defined geographic unit for reporting data, such as county, region, or catchment area. The state should consider how it divides its mental health system into smaller units or catchment areas to select geographic designations that will yield meaningful, actionable information. "]
[null,"C","In column C, starting in cell C8, please select whether geographic designation entered in the corresponding cell in column B could be considered urban or rural.  If the geographic designation should be categorized as something other than urban or rural, select \"Other-please explain\" and record an explanation in the notes box in column D. Urban is defined as a Metropolitan Statistical Area or a Metropolitan division (in the case where a Metropolitan Statistical Area is divided into Metropolitan Divisions), as defined by the Executive Office of Management and Budget (42 CFR § 412.64(b))  Rural is defined as any area outside an urban area as defined in 42 CFR § 412.64(b)."]
[null,"D","In column D, beginning in cell D8, please use this space to explain the state's response if the state selects 'Other-please explain' in column C."]
[null,"E","In column E, starting in cell E8, enter the total number of adult Medicaid beneficiaries ages 18-20 in each geographic designation at the selected point in time. Medicaid beneficiary means a person who has been determined to be eligible to receive Medicaid services as defined at 42 CFR §400.200. Note: this age category is separate in order to avoid double counting beneficiaries in the residential treatment category and to facilitate the calculation of certain ratios in the assessment. See the note in the following cell for additional explanation "]
[null,"F","In column F, starting in cell F8, enter the number of adult Medicaid beneficiaries ages 18-20 with SMI in each geographic designation at the selected point in time. As defined on page 1 of the State Medicaid Directors Letter, serious mental illness means persons age 18 and over who currently, or at any time during the past year, have had a diagnosable mental, behavioral, or emotional disorder of sufficient duration to meet diagnostic criteria, that has resulted in functional impairment which substantially interferes with or limits one or more major life activities. \n\nNote: in the State Medicaid Directors letter (SMDL #18-011), SMI is defined to include individuals age 18 years and older, and SED includes children younger than 18. However, the residential treatment section of the availability assessment requests data on PRTFs, and the federal definition for PRTFs includes facilities that serve individuals under the age of 21. In order to avoid double counting beneficiaries in the residential treatment category, the assessment requests data on beneficiaries age 0-17, 18-20, and 21 and older separately.\n\n"]
[null,"G","In column G, starting in cell G8, enter the total number of adult Medicaid beneficiaries age 21 and older in each geographic designation at the selected point in time."]
[null,"H","In column H, starting in cell H8, enter the number of adult Medicaid beneficiaries age 21 and older with SMI in each geographic designation at the selected point in time. \n\nNote: in the SMDL, SMI is defined to include individuals age 18 years and older, and SED includes children younger than 18. However, the residential treatment section of the availability assessment requests data on PRTFs, and the federal definition for PRTFs includes facilities that serve individuals under the age of 21. In order to avoid double counting beneficiaries in the residential treatment category, the assessment requests data on beneficiaries age 0-17, 18-20, and 21 and older separately. "]
[null,"I","In column I, starting in cell I8, the availability assessment will automatically calculate the percent of adult Medicaid beneficiaries who have SMI in each geographic designation. The state should not input any values into this column or modify the formulas in this column. "]
[null,"J","In column J, starting in cell J8, enter the total number of Medicaid beneficiaries under the age of 18 in each geographic designation at the selected point in time. "]
[null,"K","In column K, starting in cell K8, enter the number of beneficiaries under the age of 18 with SED in each geographic designation at the selected point in time. As defined on page 2 of the SMDL, individuals with SED are those from birth up to age 18 who currently, or at any time during the past year, have had a diagnosable mental, behavioral, or emotional disorder of sufficient duration to meet diagnostic criteria that resulted in functional impairment which substantially interferes with or limits the child’s role or functioning in family, school, or community activities. Functional impairment” is defined as difficulties that substantially interfere with or limit a child or adolescent from achieving or maintaining one or more developmentally-appropriate social, behavioral, cognitive, communicative, or adaptive skills. "]
[null,"L","In column L starting in cell L8, the availability assessment will automatically calculate the percent of beneficiaries under the age of 18 who have SED in each geographic designation. The state should not input any values into this column or modify the formulas in this column. "]
[null,"M","In column M, starting in cell M8, the availability assessment will automatically calculate the number of Medicaid beneficiaries (total) in each geographic designation. "]
[null,"N","In column N, starting in cell N8, the availability assessment will automatically calculate the percent with Medicaid beneficiaries with SMI or SED (total) in each geographic designation."]
[null,"O","In column O, starting in cell O8, the availability assessment will automatically calculate the percent with SMI or SED (total) in each geographic designation."]
[null,"P","In column P, beginning in cell P8, please use this space to provide notes about or qualifications to beneficiary data. For example, use this cell to explain data limitations or missing data. "]
[null,"Q","In column Q, starting in cell Q8, enter the number of psychiatrists or other practitioners who are authorized to prescribe in each geographic designation.  A psychiatrist is any psychiatrist licensed to practice in the state under state licensure laws.  Other prescribers authorized to prescribe means the number of mental health practitioners other than psychiatrists who are authorized to prescribe as defined by state licensure laws."]
[null,"R","In column R, starting in cell R8, enter the number of Medicaid-enrolled psychiatrists or other practitioners who are authorized to prescribe in each geographic designation.  Medicaid-enrolled means any provider enrolled in Medicaid to obtain Medicaid billing privileges, as defined in 42 CFR §455.410."]
[null,"S","In column S, starting in cell S8, enter the number of Medicaid-enrolled psychiatrists or other practitioners who are authorized to prescribe and are accepting new Medicaid patients in each geographic designation.  Accepting new Medicaid patients means any provider enrolled in Medicaid to obtain Medicaid billing privileges who will treat new Medicaid-enrolled patients."]
[null,"T-V","In columns T-V, starting in cell T8, the availability assessment will automatically calculate the ratios in each geographic designation. The state should not input any values into these columns or modify the formulas in these columns. "]
[null,"W","In column W, beginning in cell W8, please use this space to provide notes about or qualifications to category data.  For example, use this cell to explain data limitations or missing data. "]
[null,"X","In column X, starting in cell X8, enter the number of other practitioners certified or licensed to independently treat mental illness in each geographic designation. Other types of practitioners certified or licensed to independently treat mental illness means non-psychiatrist mental health providers who are certified or licensed to independently treat mental illness as defined by state licensure laws. This may include, but is not limited to, licensed psychologists, clinical social workers, and professional counselors."]
[null,"Y","In column Y, starting in cell Y8, enter the number of Medicaid-enrolled other types of practitioners certified and licensed to independently treat mental illness in each geographic designation."]
[null,"Z","In column Z, starting in cell Z8, enter the number of Medicaid-enrolled other types of practitioners certified and licensed to independently treat mental illness accepting new Medicaid patients in each geographic designation."]
[null,"AA-AC","In columns AA-AC, starting in cell AA8, the availability assessment will automatically calculate the ratios in each geographic designation. The state should not input any values into these columns or modify the formulas in these columns. "]
[null,"AD","In column AD, beginning in cell AD8, please use this space to provide notes about or qualifications to category data.  For example, use this cell to explain data limitations or missing data. "]
[null,"AE","In column AE, starting in cell AE8, enter the number of community mental health centers (CMHCs) in each geographic designation. A community mental health center is an entity that provides outpatient mental health services, 24 hour emergency care services, day treatment, screenings, and consultation and educational services, as defined at 42 CFR §410.2."]
[null,"AF","In column AF, starting in cell AF8, enter the number of Medicaid-enrolled CMHCs in each geographic designation."]
[null,"AG","In column AG, starting in cell AG8, enter the number of Medicaid-enrolled CMHCs accepting new Medicaid patients in each geographic designation."]
[null,"AH-AJ","In columns AH-AJ, starting in cell AH8, the availability assessment will automatically calculate the ratios in each geographic designation. The state should not input any values into these columns or modify the formulas in these columns. "]
[null,"AK","In column AK, beginning in cell AK8, please use this space to provide notes about or qualifications to category data.  For example, use this cell to explain data limitations or missing data. "]
[null,"AL","In column AL, starting in cell AL8, enter the number of intensive outpatient/partial hospitalization providers in each geographic designation. Partial hospitalization or intensive outpatient services means a distinct and organized intensive ambulatory treatment program that offers less than 24-hour daily care other than in an individual's home or in an inpatient or residential setting."]
[null,"AM","In column AM, starting in cell AM8, enter the number of Medicaid-enrolled intensive outpatient/partial hospitalization providers in each geographic designation."]
[null,"AN","In column AN, starting in cell AN8, enter the number of Medicaid-enrolled intensive outpatient/partial hospitalization providers accepting new Medicaid patients in each geographic designation."]
[null,"AO-AQ","In column AO-AQ, starting in cell AO8, the availability assessment will automatically calculate the ratios in each geographic designation. The state should not input any values into these columns or modify the formulas in these columns. "]
[null,"AR","In column AR, beginning in cell AR8, please use this space to provide notes about or qualifications to category data. For example, use this cell to explain data limitations or missing data. "]
[null,"AS","In column AS, starting in cell AS8, enter the number of residential mental health treatment facilities (adult) in each geographic designation.  A residential mental health treatment facilities (adult) is a facility not licensed as a psychiatric hospital, whose primary purpose is to provide individually planned programs of mental health treatment services in a residential care setting for adults as defined for SAMHSA's N-MHSS. Please exclude residential SUD treatment facilities."]
[null,"AT","In column AT, starting in cell AT8, enter the number of Medicaid-enrolled residential mental health treatment facilities (adult) in each geographic designation."]
[null,"AU","In column AU, starting in cell AU8, enter the number of Medicaid-enrolled residential mental health treatment facilities (adult) accepting new Medicaid patients in each geographic designation."]
[null,"AV-AX","In column AV-AX, starting in cell AV8, the availability assessment will automatically calculate the ratios in each geographic designation. The state should not input any values into these columns or modify the formulas in these columns. "]
[null,"AY","In column AY, starting in cell AY8, enter the total number of residential mental health treatment facility beds (adult) in each geographic designation."]
[null,"AZ","In column AZ, starting in cell AZ8, enter the total number of Medicaid-enrolled residential mental health treatment beds (adult) in each geographic designation."]
[null,"BA","In column BA, starting in cell BA8, enter the total number of Medicaid-enrolled residential mental health treatment beds available to adult Medicaid patients in each geographic designation. Available to Medicaid adult Medicaid patients means any facility or bed available to serve Medicaid patients over the age of 18. "]
[null,"BB-BD","In column BB-BD, starting in cell BB8, the availability assessment will automatically calculate the ratios in each geographic designation. The state should not input any values into these columns or modify the formulas in these columns."]
[null,"BE","In column BE, beginning in cell BE8, please use this space to provide notes about or qualifications to category data. For example, use this cell to explain data limitations or missing data. "]
[null,"BF","In column BF, starting in cell BF8, enter the number of psychiatric residential treatment facilities (PRTF) in each geographic designation. A PRTF is a non-hospital facility with a provider agreement with a state Medicaid agency to provide the inpatient psychiatric services to individuals under age 21 benefit (psych under 21 benefit). The facility must be accredited by the Joint Commission, the Council on Accreditation of Services for Families and Children, the Commission on Accreditation of Rehabilitation Facilities, or any other accrediting organization with comparable standards recognized by the State. PRTFs must also meet the requirements at 42 CFR §441.151 - §441.182, and 42 CFR §483.350 – §483.376."]
[null,"BG","In column BG, starting in cell BG8, enter the number of Medicaid-enrolled PRTFs in each geographic designation."]
[null,"BH","In column BH, starting in cell BH8, enter the number of Medicaid-enrolled PRTFs accepting new Medicaid patients in each geographic designation."]
[null,"BI-BK","In column BI-BK, starting in cell BI8, the availability assessment will automatically calculate the ratios in each geographic designation. The state should not input any values into these columns or modify the formulas in these columns."]
[null,"BL","In column BL, starting in cell BL8, enter the total number of PRTF beds in each geographic designation."]
[null,"BM","In column BM, starting in cell BM8, enter the number of Medicaid-enrolled PRTF beds in each geographic designation."]
[null,"BN","In column BN, starting in cell BN8, enter the number of Medicaid-enrolled PRTF beds available to Medicaid patients in each geographic designation. Available to Medicaid patients means any facility or bed available to serve Medicaid patients."]
[null,"BO-BQ","In column BO-BQ, starting in cell BO8, the availability assessment will automatically calculate the ratios in each geographic designation. The state should not input any values into these columns or modify the formulas in these columns. "]
[null,"BR","In column BR, beginning in cell BR8, please use this space to provide notes about or qualifications to category data. For example, use this cell to explain data limitations or missing data. "]
[null,"BS","In column BS, starting in cell BS8, enter the number of psychiatric hospitals in each geographic designation. A psychiatric hospital is an institution which provides diagnosis and treatment of mentally ill persons, as defined at 42 USC §1395x.  "]
[null,"BT","In column BT, starting in cell BT8, enter the number of psychiatric hospitals available to Medicaid patients in each geographic designation."]
[null,"BU-BV","In column BU-BV, starting in cell BU8, the availability assessment will automatically calculate the ratios in each geographic designation. The state should not input any values into these columns or modify the formulas in these columns. "]
[null,"BW","In column BW, beginning in cell BW8, please use this space to provide notes about or qualifications to category data. For example, use this cell to explain data limitations or missing data. "]
[null,"BX","In column BX, starting in cell BX8, enter the number of psychiatric units in acute care hospitals in each geographic designation.  A psychiatric unit is a separate inpatient psychiatric unit of a general hospital that provides inpatient mental health services and has specifically allocated staff and space (beds) for the treatment of persons with mental illness, as defined for SAMHSA's N-MHSS."]
[null,"BY","In column BY, starting in cell BY8, enter the number of psychiatric units in critical access hospitals (CAHs) in each geographic designation.  A critical access hospital is a small facility that provides 24-hour emergency care, outpatient services, as well as inpatient services to people in rural areas, as defined in 42 CFR §485.606.  "]
[null,"BZ","In column BZ, starting in cell BZ8, enter the number of Medicaid-enrolled psychiatric units in acute care hospitals in each geographic designation."]
[null,"CA","In column CA, starting in cell CA8, enter the number of Medicaid-enrolled psychiatric units in CAHs in each geographic designation."]
[null,"CB","In column CB, starting in cell CB8, enter the number of Medicaid-enrolled psychiatric units in acute care hospitals accepting new Medicaid patients in each geographic designation."]
[null,"CC","In column CC starting in cell CC8, enter the number of Medicaid-enrolled psychiatric units in CAHs accepting new Medicaid patients in each geographic designation."]
[null,"CD-CI","In column CD-CI, starting in cell CD8, the availability assessment will automatically calculate the ratios in each geographic designation. The state should not input any values into these columns or modify the formulas in these columns. "]
[null,"CJ","In column CJ, beginning in cell CJ8, please use this space to provide notes about or qualifications to category data. For example, use this cell to explain data limitations or missing data. "]
[null,"CK","In column CK, starting in cell CK8, enter the number of licensed psychiatric hospital beds (psychiatric hospital + psychiatric units) in each geographic designation. Please enter the number of licensed psychiatric hospital beds as defined by state licensure requirements.  "]
[null,"CL","In column CL, starting in cell CL8, enter the number of licensed psychiatric hospital beds (psychiatric hospital + psychiatric units) available to Medicaid patients in each geographic designation."]
[null,"CM-CN","In column CM-CN, starting in cell CM8, the availability assessment will automatically calculate the ratios in each geographic designation. The state should not input any values into these columns or modify the formulas in these columns. "]
[null,"CO","In column CO, beginning in cell CO8, please use this space to provide notes about or qualifications to category data. For example, use this cell to explain data limitations or missing data. "]
[null,"CP","In column CP, starting in cell CP8, enter the number of residential mental health treatment facilities (adult) that qualify as an institution for mental diseases (IMDs) in each geographic designation. An IMD is a hospital, nursing facility, or other institution of more than 16 beds that is primarily engaged in providing diagnosis, treatment or care of persons with mental diseases, including medical attention, nursing care and related services per section 1905(i) of the Social Security Act. See also 42 CFR §435.1010 and section 4390 of the State Medicaid Manual."]
[null,"CQ","In column CQ, starting in cell CQ8, enter the number of Medicaid-enrolled residential mental health treatment facilities (adult) that qualify as IMDs in each geographic designation."]
[null,"CR","In column CR, starting in cell CR8, enter the number of Medicaid-enrolled residential mental health treatment facilities (adult) that qualify as IMDs accepting Medicaid patients in each geographic designation."]
[null,"CS-CU","In column CS-CU, starting in cell CS8, the availability assessment will automatically calculate the ratios in each geographic designation. The state should not input any values into these columns or modify the formulas in these columns."]
[null,"CV","In column CV, starting in cell CV8, enter the number of psychiatric hospitals that qualify as IMDs in each geographic designation."]
[null,"CW","In column CW, starting in cell CW8, the availability assessment will automatically calculate the ratios in each geographic designation. The state should not input any values into these columns or modify the formulas in these columns."]
[null,"CX","In column CX, beginning in cell CX8, please use this space to provide notes about or qualifications to category data. For example, use this cell to explain data limitations or missing data. "]
[null,"CY","In column CY, starting in cell CY8, enter the number of crisis call centers in each geographic designation. Please enter the number of crisis call centers as defined by the state. "]
[null,"CZ","In column CZ, starting in cell CZ8, enter the number of mobile crisis units in each geographic designation. A mobile crisis unit is a team that intervenes during mental health crises, as defined by the state."]
[null,"DA","In column DA, starting in cell DA8, enter the number of crisis observation/ assessment centers in each geographic designation. Please enter the number of observation or assessment centers as defined by the state."]
[null,"DB","In column DB, starting in cell DB8, enter the number of crisis stabilization units in each geographic designation. Crisis stabilization units offer medically monitored short-term crisis stabilization services, as defined by the state. "]
[null,"DC","In column DC, starting in cell DC8, enter the number of coordinated community crisis response teams in each geographic designation. Coordinated community crisis response means a community-based program or entity that manages crisis response across various community entities or programs, as defined by the state."]
[null,"DD-DH","In column DD-DH, starting in cell DD8, the availability assessment will automatically calculate the ratios in each geographic designation. The state should not input any values into these columns or modify the formulas in these columns."]
[null,"DI","In column DI, beginning in cell DI8, please use this space to provide notes about or qualifications to category data. For example, use this cell to explain data limitations or missing data. "]
[null,"DJ","In column DJ, starting in cell DJ8, enter the number FQHCs that offer behavioral health services in each geographic designation. Federally qualified health center (FQHC) means an entity that has entered into an agreement with CMS to meet Medicare program requirements under 42 CFR §405.2434 and 42 CFR §405.2401."]
[null,"DK","In column DK, starting in cell DK8,the availability assessment will automatically calculate the ratios in each geographic designation. The state should not input any values into these columns or modify the formulas in these columns. "]
[null,"DL","In column DL, beginning in cell DL8, please use this space to provide notes about or qualifications to category data."]
[null,"DM","Beginning in column DM, add additional counts and ratios for provider and setting types that the state considers important to its mental health system.  The state should not modify any of the previous columns. "]
[null,"End of worksheet"]

{"sheet":"Definitions - Avail assessment","index":6,"n_rows":31,"n_cols":3,"rows_kept":31,"merged":[[0,1,0,2]]}
[null,"Definitions of terms used in the Availability Assessment"]
[null,"Term","Definition"]
[null,"Accepting new Medicaid patients","Accepting new Medicaid patients means any provider enrolled in Medicaid to obtain Medicaid billing privileges who will treat new Medicaid-enrolled patients."]
[null,"Available to Medicaid patients","Available to Medicaid patients means any facility or bed available to serve Medicaid patients. "]
[null,"Adult","An adult is a person age 18 and over [SMDL]."]
[null,"Community mental health center (CMHC)","A community mental health center (CMHC) is an entity that provides outpatient mental health services, 24 hour emergency care services, day treatment, screenings, and consultation and educational services, as defined at 42 CFR §410.2."]
[null,"Coordinated community crisis response","Coordinated community crisis response means a community-based program or entity that manages crisis response across various community entities or programs, as defined by the state."]
[null,"Crisis call center","Crisis call centers are defined by the state. "]
[null,"Crisis stabilization unit","Crisis stabilization units offer medically monitored short-term crisis stabilization services, as defined by the state. "]
[null,"Critical access hospital","A critical access hospital is a small facility that provides 24-hour emergency care, outpatient services, as well as inpatient services to people in rural areas, as defined in 42 CFR §485.606.  "]
[null,"Federally qualified health center","Federally qualified health center (FQHC) means an entity that has entered into an agreement with CMS to meet Medicare program requirements under 42 CFR §405.2434 and 42 CFR §405.2401"]
[null,"Geographic designation ","Geographic designation means a state-defined geographic unit for reporting data, such as county, region, or catchment area."]
[null,"Institution for mental diseases (IMD)","An institution for mental diseases is a hospital, nursing facility, or other institution of more than 16 beds that is primarily engaged in providing diagnosis, treatment or care of persons with mental diseases, including medical attention, nursing care and related services per section 1905(i) of the Social Security Act. See also 42 CFR §435.1010 and section 4390 of the State Medicaid Manual."]
[null,"Intensive outpatient services or partial hospitalization","Intensive outpatient services or partial hospitalization means a distinct and organized intensive ambulatory treatment program that offers less than 24-hour daily care other than in an individual's home or in an inpatient or residential setting. "]
[null,"Licensed psychiatric hospital bed","Licensed psychiatric hospital bedsare defined by state licensure requirements.  "]
[null,"Medicaid beneficiary","Medicaid beneficiary means a person who has been determined to be eligible to receive Medicaid services as defined at 42 CFR §400.200."]
[null,"Medicaid-enrolled","Medicaid-enrolled means any provider enrolled in Medicaid to obtain Medicaid billing privileges, as defined in 42 CFR §455.410."]
[null,"Mobile crisis unit","A mobile crisis unit is a team that intervenes during mental health crises, as defined by the state."]
[null,"Mental health practitioners other than psychiatrists who are authorized to prescribe","Mental health practitioners other than psychiatrists who are authorized to prescribe are defined by state licensure laws."]
[null,"Mental health practitioners other than psychiatrists who are certified or licensed by the state to independently treat mental illness. ","Mental health practitioners other than psychiatrists who are certified or licensed to treat mental illness are non-psychiatrist mental health providers who are certified or licensed to independently treat mental illness as defined by state licensure laws. This may include, but is not limited to, licensed psychologists, clinical social workers, and professional counselors ."]
[null,"Observation or assessment centers ","Observation or assessment centers are defined by the state."]
[null,"Psychiatric hospital ","A psychiatric hospital is an institution which provides diagnosis and treatment of mentally ill person, as defined at 42 USC §1395x. "]
[null,"Psychiatric residential treatment facility (PRTF)","A psychiatric residential treatment facility is a non-hospital facility with a provider agreement with a state Medicaid agency to provide the inpatient psychiatric services to individuals under age 21 benefit (psych under 21 benefit). The facility must be accredited by the Joint Commission, the Council on Accreditation of Services for Families and Children, the Commission on Accreditation of Rehabilitation Facilities, or any other accrediting organization with comparable standards recognized by the State. PRTFs must also meet the requirements at 42 CFR §441.151 - §441.182, and 42 CFR §483.350 – §483.376."]
[null,"Psychiatric unit","A psychiatric unit is a separate inpatient psychiatric unit of a general hospital that provides inpatient mental health services and has specifically allocated staff and space (beds) for the treatment of persons with mental illness, as defined for SAMHSA's National Mental Health Services Survey (N-MHSS)."]
[null,"Psychiatrist ","A psychiatrist is any psychiatrist licensed to practice in the state under state licensure laws"]
[null,"Residential mental health treatment facilities (adult) ","A residential mental health treatment facilities (adult) is a facility not licensed as a psychiatric hospital, whose primary purpose is to provide individually planned programs of mental health treatment services in a residential care setting for adults as defined for SAMHSA's N-MHSS. Please exclude residential SUD treatment facilities."]
[null,"Rural","Rural means any area outside an urban area as defined in 42 CFR § 412.64(b)"]
[null,"Serious emotional disturbance","Persons withserious emotional disturbance means individuals from birth up to age 18 who currently, or at any time during the past year, have had a diagnosable mental, behavioral, or emotional disorder of sufficient duration to meet diagnostic criteria that resulted in functional impairment which substantially interferes with or limits the child’s role or functioning in family, school, or community activities. Functional impairment” is defined as difficulties that substantially interfere with or limit a child or adolescent from achieving or maintaining one or more developmentally-appropriate social, behavioral, cognitive, communicative, or adaptive skills [SMDL]. "]
[null,"Serious mental illness","Persons with serious mental illness means individuals, age 18 and over, who currently, or at any time during the past year, have had a diagnosable mental, behavioral, or emotional disorder of sufficient duration to meet diagnostic criteria, that has resulted in functional impairment which substantially interferes with or limits one or more major life activities. [SMDL]\n\nNote: in the SMDL, SMI is defined to include individuals age 18 years and older, and SED includes children younger than 18. However, the residential treatment section of the availability assessment requests data on PRTFs, and the federal definition for PRTFs includes facilities that serve individuals under the age of 21. In order to avoid double counting beneficiaries in the residential treatment category, the assessment requests data on beneficiaries age 0-17, 18-20, and 21 and older separately."]
[null,"Urban","Urban means a Metropolitan Statistical Area or a Metropolitan division (in the case where a Metropolitan Statistical Area is divided into Metropolitan Divisions), as defined by the Executive Office of Management and Budget (42 CFR § 412.64(b))."]
[null,"End of worksheet"]

{"sheet":"Availability Asesssment","index":7,"n_rows":20,"n_cols":116,"rows_kept":20,"merged":[[0,4,0,8],[1,4,1,8],[2,4,2,8],[4,4,4,15],[4,16,4,29],[4,30,4,36],[4,37,4,43],[4,44,4,69],[4,70,4,92],[4,93,4,101],[4,102,4,112],[4,113,4,115],[5,4,5,8],[5,9,5,11],[5,12,5,14],[5,16,5,22],[5,23,5,29],[5,44,5,56],[5,57,5,69],[5,70,5,74],[5,75,5,87],[5,88,5,92],[5,93,5,98],[5,99,5,101],[5,120,5,121],[7,15,17,15],[7,22,17,22],[7,29,17,29],[7,36,17,36],[7,43,17,43],[7,56,17,56],[7,69,17,69],[7,74,17,74],[7,87,17,87],[7,92,17,92],[7,101,17,101],[7,112,17,112],[7,115,17,115]]}
[null,"State Name"]
[null,"Date of Assessment"]
[null,"Time Period Reflected in Assessment"]
[]
[null,"Geographic Designation",null,null,"Beneficiaries",{"$nulls":11},"Providers",{"$nulls":13},"Community Mental Health Centers",{"$nulls":6},"Intensive Outpatient or Partial Hospitalization Providers",{"$nulls":6},"Residential Mental Health Treatment Facilities ",{"$nulls":25},"Inpatient",{"$nulls":22},"Institutions for Mental Diseases",{"$nulls":8},"Crisis Stabilization Services",{"$nulls":10},"Federally Qualified Health Centers"]
[{"$nulls":4},"Adult  ",{"$nulls":4},"Children",null,null,"Total",{"$nulls":3},"Psychiatrists or Other Practitioners Who Are Authorized to Prescribe",{"$nulls":6},"Other Practitioners Certified and Licensed to Independently Treat Mental Illness",{"$nulls":20},"Residential Mental Health Treatment Facilities (Adult)",{"$nulls":12},"Psychiatric Residential Treatment Facilities",{"$nulls":12},"Psychiatric Hospitals",{"$nulls":4},"Psychiatric Units",{"$nulls":12},"Psychiatric Beds",{"$nulls":4},"Residential Treatment Facilities That Qualify As IMDs",{"$nulls":5},"Psychiatric Hospitals That Qualify As IMDs"]
[null,"Geographic designation","Is this geographic designation primarily urban or rural?","Geographic Designation Notes","Number of adult Medicaid beneficiaries (18 - 20)","Number of adult Medicaid beneficiaries with SMI \n(18 - 20)","Number of adult Medicaid beneficiaries (21+)","Number of adult Medicaid beneficiaries with SMI (21+)","Percent with SMI (Adult)","Number of Medicaid beneficiaries (0 - 17)","Number of Medicaid beneficiaries with SED \n(0 - 17)","Percent with SED (0-17)","Number of Medicaid beneficiaries (Total)","Number of Medicaid beneficiaries with SMI or SED (Total)","Percent with SMI or SED (Total)","Beneficiary Category Notes","Number of Psychiatrists or Other Practitioners Who Are Authorized to Prescribe","Number of Medicaid-Enrolled Psychiatrists or Other Practitioners Who Are Authorized to Prescribe","Number of Medicaid-Enrolled Psychiatrists or Other Practitioners Who Are Authorized to Prescribe Accepting New Medicaid Patients","Ratio of Medicaid beneficiaries with SMI/SED to Medicaid-Enrolled Psychiatrists or Other Prescribers ","Ratio of Total Psychiatrists or Other Prescribers to Medicaid-Enrolled Psychiatrists or Other Prescribers","Ratio of Medicaid-Enrolled Psychiatrists or Other Prescribers to Medicaid-Enrolled Psychiatrists or Other Prescribers Accepting New Medicaid Patients","Psychiatrists or Other Practitioners Who Are Authorized to Prescribe Category Notes","Number of Other Practitioners Certified or Licensed to Independently Treat Mental Illness","Number of Medicaid-Enrolled Other Practitioners Certified or Licensed to Independently Treat Mental Illness","Number of Medicaid-Enrolled Other Practitioners Certified or Licensed to Independently Treat Mental Illness Accepting New Medicaid Patients","Ratio of Medicaid Beneficiaries with SMI/SED to Medicaid-Enrolled Other Practitioners Certified or Licensed to Independently Treat Mental Illness","Ratio of Other Practitioners Certified or Licensed to Independently Treat Mental Illness to Medicaid-Enrolled Other Practitioners Certified or Licensed to Independently Treat Mental Illness","Ratio of Medicaid-Enrolled Other Practitioners Certified and Licensed to Independently Treat Mental Illness to Medicaid-Enrolled Other Practitioners Certified and Licensed to Independently Treat Mental Illness Accepting New Patients","Other Practitioner Category Notes","Number of CMHCs","Number of Medicaid- Enrolled CMHCs ","Number of Medicaid-Enrolled CMHCs Accepting New Medicaid Patients","Ratio of Medicaid Beneficiaries with SMI/SED to Medicaid- Enrolled CMHCs ","Ratio of Total CMHCs to Medicaid- Enrolled CMHCs","Ratio of Medicaid-Enrolled CMHCs to Medicaid-Enrolled CMHCs Accepting New Patients","CMHC Category Notes","Number of Intensive Outpatient/ Partial Hospitalization Providers","Number of Medicaid-Enrolled Intensive Outpatient/ Partial Hospitalization Providers","Number of Medicaid-Enrolled Intensive Outpatient/Partial Hospitalization Providers Accepting New Medicaid Patients","Ratio of Medicaid Beneficiaries with SMI/SED to Medicaid- Enrolled Intensive Outpatient/ Partial Hospitalization Providers ","Ratio of Total Partial Hospitalization/ Day Treatment Providers to Medicaid-Enrolled Intensive Outpatient/ Partial Hospitalization Providers","Ratio of Medicaid-Enrolled Partial Hospitalization/ Day Treatment Providers to Medicaid- Enrolled Intensive Outpatient/ Partial Hospitalization Providers Accepting New Medicaid Patients","Intensive Outpatient/  Partial Hospitalization Category Notes","Number of Residential Mental Health Treatment Facilities (Adult)","Number of Medicaid- Enrolled Residential Mental Health Treatment Facilities (Adult)","Number of Medicaid-Enrolled Residential Mental Health Treatment Facilities Accepting New Medicaid Patients (Adult)","Ratio of Medicaid Beneficiaries with SMI (Adult) to Medicaid- Enrolled Residential Mental Health Treatment Facilities (Adult) ","Ratio of Total Residential Mental Health Treatment Facilities (Adult) to Medicaid-Enrolled Residential Mental Health Treatment Facilities (Adult)","Ratio of Medicaid-Enrolled Residential Mental Health Treatment Facilities (Adult) to Medicaid- Enrolled Residential Mental Health Treatment Facilities (Adult) Accepting New Patients","Total Number of Residential Mental Health Treatment Facility Beds (Adult)","Total Number of Medicaid- Enrolled Residential Mental Health Treatment Beds (Adult)","Total Number of Medicaid-Enrolled Residential Mental Health Treatment Beds Available to Adult Medicaid Patients","Ratio of Medicaid Beneficiaries with SMI (Adult) to Medicaid-Enrolled Residential Mental Health Treatment Beds ","Ratio of Total Residential Mental Health Treatment Beds to Medicaid-Enrolled Residential Mental Health Treatment Beds","Ratio of Medicaid-Enrolled Residential Mental Health Treatment Beds to Medicaid- Enrolled Residential Mental Health Treatment Beds Available to Medicaid Patients","Residential Mental Health Treatment Facility Category Notes (Adult)","Number of Psychiatric Residential Treatment Facilities (PRTF) ","Number of Medicaid- Enrolled PRTFs","Number of Medicaid-Enrolled PRTFs Accepting New Medicaid Patients","Ratio of Medicaid Beneficiaries with SED to Medicaid-Enrolled PTRFs ","Ratio of Total PTRFs to Medicaid- Enrolled PRTFs","Ratio of Medicaid-Enrolled PRTFs to Medicaid-Enrolled PRTFs Accepting New Medicaid Patients","Total Number of PRTF Beds","Number of Medicaid-Enrolled PRTF Beds","Number of Medicaid-Enrolled PRTF Beds Available to Medicaid Patients","Ratio of Medicaid Beneficiaries with SED to Medicaid-Enrolled PRTF Beds Available to Medicaid Patients","Ratio of Total Number of PRTF Beds to Medicaid- Enrolled PRTF Beds","Ratio of Medicaid- Enrolled PRTF Beds to Medicaid- Enrolled PRTFs Available to Medicaid Patients","Psychiatric Residential Treatment Facility (Under 21) Category Notes","Number of Psychiatric  Hospitals    ","Psychiatric Hospitals Available to Medicaid Patients","Ratio of Medicaid Beneficiaries with SMI/SED to Psychiatric Hospitals Available to Medicaid Patients","Ratio of Psychiatric Hospitals to Psychiatric Hospitals Available to Medicaid Patients","Psychiatric Hospital Category Notes","Number of Psychiatric Units in Acute Care Hospitals","Number of Psychiatric Units in Critical Access Hospitals (CAHs)","Number of Medicaid- Enrolled Psychiatric Units in Acute Care Hospitals","Number of Medicaid-Enrolled Psychiatric Units in CAHs","Number of Medicaid-Enrolled Psychiatric Units in Acute Care Hospitals Accepting New Medicaid Patients","Number of Medicaid-Enrolled Psychiatric Units in CAHs Accepting New Medicaid Patients","Ratio of Medicaid Beneficiaries with SMI/SED to Medicaid-Enrolled Psychiatric Units in Acute Care Hospitals ","Ratio of Medicaid Beneficiaries with SMI/SED to Medicaid-Enrolled Psychiatric Units in CAHs","Ratio of Psychiatric Units in Acute Care Hospitals to Medicaid-Enrolled Psychiatric Units in Acute Care Hospitals","Ratio of Psychiatric Units in CAHs to Medicaid-Enrolled Psychiatric Units in CAHs","Ratio of Medicaid-Enrolled Psychiatric Units in Acute Care Hospitals to Medicaid-Enrolled Psychiatric Units in Acute Care Hospitals Accepting New Medicaid Patients","Ratio of Medicaid-Enrolled Psychiatric Units in CAHs to Medicaid-Enrolled Psychiatric Units in CAHs Accepting New Medicaid Patients","Psychiatric Unit Category Notes","Number of Licensed Psychiatric  Hospital Beds (Psychiatric Hospital + Psychiatric Units)","Number of Licensed Psychiatric Hospital Beds (Psychiatric Hospital + Psychiatric Units) Available to Medicaid Patients","Ratio of Medicaid Beneficiaries with SMI/SED to Licensed Psychiatric Hospital Beds Available to Medicaid Patients","Ratio of Licensed Psychiatric Hospital Beds to Licensed Psychiatric Hospital Beds Available to Medicaid Patients ","Psychiatric Beds Category Notes","Number of Residential Mental Health Treatment Facilities (Adult) that Qualify as IMDs ","Number of Medicaid- Enrolled Residential Mental Health Treatment Facilities (Adult) that Qualify as IMDs","Number of Medicaid- Enrolled Residential Mental Health Treatment Facilities (Adult) that Qualify as IMDs Accepting Medicaid Patients","Ratio of Medicaid Beneficiaries with SMI (Adult) to Medicaid- Enrolled Residential Mental Health Treatment Facilities that Qualify as IMDs ","Ratio of Total Residential Mental Health Treatment Facilities (Adult) that Qualify as IMDs to Medicaid-Enrolled Residential Mental Health Treatment Facilities (Adult) that Qualify as IMDs","Ratio of Medicaid-Enrolled Residential Mental Health Treatment Facilities (Adult) that Qualify as IMDs to Medicaid- Enrolled Residential Mental Health Treatment Facilities (Adult) that Qualify as IMDs Accepting New Medicaid Patients","Number of Psychiatric Hospitals that Qualify as IMDs","Ratio of Medicaid Beneficiaries with SMI/SED to Psychiatric Hospitals that Qualify as IMDs ","Facilities That Qualify As IMDs Category Notes","Number of Crisis Call Centers","Number of Mobile Crisis Units","Number of Crisis Observation/ Assessment Centers","Number of Crisis Stabilization Units","Number of Coordinated Community Crisis Response Teams","Ratio of Medicaid Beneficiaries with SMI/SED to Crisis Call Centers  ","Ratio of Medicaid Beneficiaries with SMI/SED to Mobile Crisis Units ","Ratio of Medicaid Beneficiaries with SMI/SED to Crisis Observation/ Assessment Centers ","Ratio of Medicaid Beneficiaries with SMI/SED to Crisis Stabilization Units ","Ratio of Medicaid Beneficiaries with SMI/SED to Coordinated Community Crisis Response Teams ","Crisis Stabilization Services Category Notes","Number FQHCs that Offer Behavioral Health Services","Ratio of Medicaid Beneficiaries with SMI/SED to FQHCs that Offer Behavioral Health Services ","FQHC Category Notes"]
[{"$f":"TEXT(1,\"#.\")","v":"1."},{"$nulls":7},{"$f":"IFERROR((F8+H8)/(E8+G8),\"-\")","v":"-"},null,null,{"$f":"IFERROR(K8/J8,\"-\")","v":"-"},{"$f":"E8+G8+J8","v":0},{"$f":"F8+H8+K8","v":0},{"$f":"IFERROR(N8/M8,\"-\")","v":"-"},{"$nulls":4},{"$f":"IFERROR(N8/R8,\"-\")","v":"-"},{"$f":"IFERROR(Q8/R8,\"-\")","v":"-"},{"$f":"IFERROR(R8/S8,\"-\")","v":"-"},{"$nulls":4},{"$f":"IFERROR(N8/Y8,\"-\")","v":"-"},{"$f":"IFERROR(X8/Y8,\"-\")","v":"-"},{"$f":"IFERROR(Y8/Z8,\"-\")","v":"-"},{"$nulls":4},{"$f":"IFERROR(N8/AF8,\"-\")","v":"-"},{"$f":"IFERROR(AE8/AF8,\"-\")","v":"-"},{"$f":"IFERROR(AF8/AG8,\"-\")","v":"-"},{"$nulls":4},{"$f":"IFERROR(N8/AM8,\"-\")","v":"-"},{"$f":"IFERROR(AL8/AM8,\"-\")","v":"-"},{"$f":"IFERROR(AM8/AN8,\"-\")","v":"-"},{"$nulls":4},{"$f":"IFERROR((F8+H8)/AT8,\"-\")","v":"-"},{"$f":"IFERROR(AS8/AT8,\"-\")","v":"-"},{"$f":"IFERROR(AT8/AU8,\"-\")","v":"-"},{"$nulls":3},{"$f":"IFERROR((F8+H8)/AZ8,\"-\")","v":"-"},{"$f":"IFERROR(AY8/AZ8,\"-\")","v":"-"},{"$f":"IFERROR(AZ8/BA8,\"-\")","v":"-"},{"$nulls":4},{"$f":"IFERROR(K8/BG8,\"-\")","v":"-"},{"$f":"IFERROR(BF8/BG8,\"-\")","v":"-"},{"$f":"IFERROR(BG8/BH8,\"-\")","v":"-"},{"$nulls":3},{"$f":"IFERROR(K8/BN8,\"-\")","v":"-"},{"$f":"IFERROR(BL8/BM8,\"-\")","v":"-"},{"$f":"IFERROR(BM8/BN8,\"-\")","v":"-"},{"$nulls":3},{"$f":"IFERROR(N8/BT8,\"-\")","v":"-"},{"$f":"IFERROR(BS8/BT8,\"-\")","v":"-"},{"$nulls":7},{"$f":"IFERROR(N8/BZ8,\"-\")","v":"-"},{"$f":"IFERROR(N8/CA8,\"-\")","v":"-"},{"$f":"IFERROR(BX8/BZ8,\"-\")","v":"-"},{"$f":"IFERROR(BY8/CA8,\"-\")","v":"-"},{"$f":"IFERROR(BZ8/CB8,\"-\")","v":"-"},{"$f":"IFERROR(CA8/CC8,\"-\")","v":"-"},{"$nulls":3},{"$f":"IFERROR(N8/CL8,\"-\")","v":"-"},{"$f":"IFERROR(CK8/CL8,\"-\")","v":"-"},{"$nulls":4},{"$f":"IFERROR((F8+H8)/CQ8,\"-\")","v":"-"},{"$f":"IFERROR(CP8/CQ8,\"-\")","v":"-"},{"$f":"IFERROR(CQ8/CR8,\"-\")","v":"-"},null,{"$f":"IFERROR(N8/CV8,\"-\")","v":"-"},{"$nulls":6},{"$f":"IFERROR(N8/CY8,\"-\")","v":"-"},{"$f":"IFERROR(N8/CZ8,\"-\")","v":"-"},{"$f":"IFERROR(N8/DA8,\"-\")","v":"-"},{"$f":"IFERROR(N8/DB8,\"-\")","v":"-"},{"$f":"IFERROR(N8/DC8,\"-\")","v":"-"},null,null,{"$f":"IFERROR(N8/DJ8,\"-\")","v":"-"}]
[{"$f":"TEXT(A8+1,\"#.\")","v":"2."},{"$nulls":7},"-",null,null,{"$f":"IFERROR(K9/J9,\"-\")","v":"-"},{"$f":"E9+G9+J9","v":0},0,"-",{"$nulls":4},{"$f":"IFERROR(N9/R9,\"-\")","v":"-"},{"$f":"IFERROR(Q9/R9,\"-\")","v":"-"},{"$f":"IFERROR(R9/S9,\"-\")","v":"-"},{"$nulls":4},{"$f":"IFERROR(N9/Y9,\"-\")","v":"-"},{"$f":"IFERROR(X9/Y9,\"-\")","v":"-"},{"$f":"IFERROR(Y9/Z9,\"-\")","v":"-"},{"$nulls":4},{"$f":"IFERROR(N9/AF9,\"-\")","v":"-"},{"$f":"IFERROR(AE9/AF9,\"-\")","v":"-"},{"$f":"IFERROR(AF9/AG9,\"-\")","v":"-"},{"$nulls":4},{"$f":"IFERROR(N9/AM9,\"-\")","v":"-"},{"$f":"IFERROR(AL9/AM9,\"-\")","v":"-"},{"$f":"IFERROR(AM9/AN9,\"-\")","v":"-"},{"$nulls":4},{"$f":"IFERROR((F9+H9)/AT9,\"-\")","v":"-"},{"$f":"IFERROR(AS9/AT9,\"-\")","v":"-"},{"$f":"IFERROR(AT9/AU9,\"-\")","v":"-"},{"$nulls":3},"-",{"$f":"IFERROR(AY9/AZ9,\"-\")","v":"-"},{"$f":"IFERROR(AZ9/BA9,\"-\")","v":"-"},{"$nulls":4},"-",{"$f":"IFERROR(BF9/BG9,\"-\")","v":"-"},{"$f":"IFERROR(BG9/BH9,\"-\")","v":"-"},{"$nulls":3},{"$f":"IFERROR(K9/BN9,\"-\")","v":"-"},{"$f":"IFERROR(BL9/BM9,\"-\")","v":"-"},{"$f":"IFERROR(BM9/BN9,\"-\")","v":"-"},{"$nulls":3},{"$f":"IFERROR(N9/BT9,\"-\")","v":"-"},"-",{"$nulls":7},"-","-",{"$f":"IFERROR(BX9/BZ9,\"-\")","v":"-"},{"$f":"IFERROR(BY9/CA9,\"-\")","v":"-"},{"$f":"IFERROR(BZ9/CB9,\"-\")","v":"-"},{"$f":"IFERROR(CA9/CC9,\"-\")","v":"-"},{"$nulls":3},"-",{"$f":"IFERROR(CK9/CL9,\"-\")","v":"-"},{"$nulls":4},"-",{"$f":"IFERROR(CP9/CQ9,\"-\")","v":"-"},{"$f":"IFERROR(CQ9/CR9,\"-\")","v":"-"},null,"-",{"$nulls":6},"-","-","-","-","-",null,null,"-"]
[{"$f":"TEXT(A9+1,\"#.\")","v":"3."},{"$nulls":7},"-",null,null,{"$f":"IFERROR(K10/J10,\"-\")","v":"-"},{"$f":"E10+G10+J10","v":0},0,"-",{"$nulls":4},"-","-","-",{"$nulls":4},"-","-","-",{"$nulls":4},"-","-","-",{"$nulls":4},"-","-","-",{"$nulls":4},"-","-","-",{"$nulls":3},"-","-","-",{"$nulls":4},"-","-","-",{"$nulls":3},"-","-","-",{"$nulls":3},"-","-",{"$nulls":7},"-","-","-","-","-","-",{"$nulls":3},"-","-",{"$nulls":4},"-","-","-",null,"-",{"$nulls":6},"-","-","-","-","-",null,null,"-"]
["4.",{"$nulls":7},"-",null,null,"-",0,0,"-",{"$nulls":4},"-","-","-",{"$nulls":4},"-","-","-",{"$nulls":4},"-","-","-",{"$nulls":4},"-","-","-",{"$nulls":4},"-","-","-",{"$nulls":3},"-","-","-",{"$nulls":4},"-","-","-",{"$nulls":3},"-","-","-",{"$nulls":3},"-","-",{"$nulls":7},"-","-","-","-","-","-",{"$nulls":3},"-","-",{"$nulls":4},"-","-","-",null,"-",{"$nulls":6},"-","-","-","-","-",null,null,"-"]
["5.",{"$nulls":7},"-",null,null,"-",0,0,"-",{"$nulls":4},"-","-","-",{"$nulls":4},"-","-","-",{"$nulls":4},"-","-","-",{"$nulls":4},"-","-","-",{"$nulls":4},"-","-","-",{"$nulls":3},"-","-","-",{"$nulls":4},"-","-","-",{"$nulls":3},"-","-","-",{"$nulls":3},"-","-",{"$nulls":7},"-","-","-","-","-","-",{"$nulls":3},"-","-",{"$nulls":4},"-","-","-",null,"-",{"$nulls":6},"-","-","-","-","-",null,null,"-"]
["6.",{"$nulls":7},"-",null,null,"-",0,0,"-",{"$nulls":4},"-","-","-",{"$nulls":4},"-","-","-",{"$nulls":4},"-","-","-",{"$nulls":4},"-","-","-",{"$nulls":4},"-","-","-",{"$nulls":3},"-","-","-",{"$nulls":4},"-","-","-",{"$nulls":3},"-","-","-",{"$nulls":3},"-","-",{"$nulls":7},"-","-","-","-","-","-",{"$nulls":3},"-","-",{"$nulls":4},"-","-","-",null,"-",{"$nulls":6},"-","-","-","-","-",null,null,"-"]
["7.",{"$nulls":7},"-",null,null,"-",0,0,"-",{"$nulls":4},"-","-","-",{"$nulls":4},"-","-","-",{"$nulls":4},"-","-","-",{"$nulls":4},"-","-","-",{"$nulls":4},"-","-","-",{"$nulls":3},"-","-","-",{"$nulls":4},"-","-","-",{"$nulls":3},"-","-","-",{"$nulls":3},"-","-",{"$nulls":7},"-","-","-","-","-","-",{"$nulls":3},"-","-",{"$nulls":4},"-","-","-",null,"-",{"$nulls":6},"-","-","-","-","-",null,null,"-"]
["8.",{"$nulls":7},"-",null,null,"-",0,0,"-",{"$nulls":4},"-","-","-",{"$nulls":4},"-","-","-",{"$nulls":4},"-","-","-",{"$nulls":4},"-","-","-",{"$nulls":4},"-","-","-",{"$nulls":3},"-","-","-",{"$nulls":4},"-","-","-",{"$nulls":3},"-","-","-",{"$nulls":3},"-","-",{"$nulls":7},"-","-","-","-","-","-",{"$nulls":3},"-","-",{"$nulls":4},"-","-","-",null,"-",{"$nulls":6},"-","-","-","-","-",null,null,"-"]
["9.",{"$nulls":7},"-",null,null,"-",0,0,"-",{"$nulls":4},"-","-","-",{"$nulls":4},"-","-","-",{"$nulls":4},"-","-","-",{"$nulls":4},"-","-","-",{"$nulls":4},"-","-","-",{"$nulls":3},"-","-","-",{"$nulls":4},"-","-","-",{"$nulls":3},"-","-","-",{"$nulls":3},"-","-",{"$nulls":7},"-","-","-","-","-","-",{"$nulls":3},"-","-",{"$nulls":4},"-","-","-",null,"-",{"$nulls":6},"-","-","-","-","-",null,null,"-"]
["10.",{"$nulls":7},"-",null,null,"-",0,0,"-",{"$nulls":4},"-","-","-",{"$nulls":4},"-","-","-",{"$nulls":4},"-","-","-",{"$nulls":4},"-","-","-",{"$nulls":4},"-","-","-",{"$nulls":3},"-","-","-",{"$nulls":4},"-","-","-",{"$nulls":3},"-","-","-",{"$nulls":3},"-","-",{"$nulls":7},"-","-","-","-","-","-",{"$nulls":3},"-","-",{"$nulls":4},"-","-","-",null,"-",{"$nulls":6},"-","-","-","-","-",null,null,"-"]
["11.",{"$nulls":7},{"$f":"IFERROR((F18+H18)/(E18+G18),\"-\")","v":"-"},null,null,{"$f":"IFERROR(K18/J18,\"-\")","v":"-"},{"$f":"E18+G18+J18","v":0},{"$f":"F18+H18+K18","v":0},{"$f":"IFERROR(N18/M18,\"-\")","v":"-"},{"$nulls":4},"-","-","-",{"$nulls":4},"-","-","-",{"$nulls":4},"-","-","-",{"$nulls":4},"-","-","-",{"$nulls":4},"-","-","-",{"$nulls":3},"-","-","-",{"$nulls":4},"-","-","-",{"$nulls":3},"-","-","-",{"$nulls":3},"-","-",{"$nulls":7},"-","-",{"$f":"IFERROR(BX18/BZ18,\"-\")","v":"-"},{"$f":"IFERROR(BY18/CA18,\"-\")","v":"-"},{"$f":"IFERROR(BZ18/CB18,\"-\")","v":"-"},{"$f":"IFERROR(CA18/CC18,\"-\")","v":"-"},{"$nulls":3},"-","-",{"$nulls":4},"-","-","-",null,"-",{"$nulls":6},"-","-","-","-","-",null,null,"-"]
[null,"Total",null,null,{"$f":"SUM(E8:OFFSET(E19,-1,0))","v":0},{"$f":"SUM(F8:OFFSET(F19,-1,0))","v":0},{"$f":"SUM(G8:OFFSET(G19,-1,0))","v":0},{"$f":"SUM(H8:OFFSET(H19,-1,0))","v":0},"-",{"$f":"SUM(J8:OFFSET(J19,-1,0))","v":0},{"$f":"SUM(K8:OFFSET(K19,-1,0))","v":0},"-",{"$f":"SUM(M8:OFFSET(M19,-1,0))","v":0},{"$f":"SUM(N8:OFFSET(N19,-1,0))","v":0},{"$f":"IFERROR(N19/M19,\"-\")","v":"-"},null,{"$f":"SUM(Q8:OFFSET(Q19,-1,0))","v":0},{"$f":"SUM(R8:OFFSET(R19,-1,0))","v":0},{"$f":"SUM(S8:OFFSET(S19,-1,0))","v":0},{"$f":"IFERROR(N19/R19,\"-\")","v":"-"},{"$f":"IFERROR(Q19/R19,\"-\")","v":"-"},{"$f":"IFERROR(R19/S19,\"-\")","v":"-"},null,{"$f":"SUM(X8:OFFSET(X19,-1,0))","v":0},{"$f":"SUM(Y8:OFFSET(Y19,-1,0))","v":0},{"$f":"SUM(Z8:OFFSET(Z19,-1,0))","v":0},{"$f":"IFERROR(N19/Y19,\"-\")","v":"-"},{"$f":"IFERROR(X19/Y19,\"-\")","v":"-"},{"$f":"IFERROR(Y19/Z19,\"-\")","v":"-"},null,{"$f":"SUM(AE8:OFFSET(AE19,-1,0))","v":0},{"$f":"SUM(AF8:OFFSET(AF19,-1,0))","v":0},{"$f":"SUM(AG8:OFFSET(AG19,-1,0))","v":0},{"$f":"IFERROR(N19/AF19,\"-\")","v":"-"},{"$f":"IFERROR(AE19/AF19,\"-\")","v":"-"},{"$f":"IFERROR(AF19/AG19,\"-\")","v":"-"},null,{"$f":"SUM(AL8:OFFSET(AL19,-1,0))","v":0},{"$f":"SUM(AM8:OFFSET(AM19,-1,0))","v":0},{"$f":"SUM(AN8:OFFSET(AN19,-1,0))","v":0},{"$f":"IFERROR(N19/AM19,\"-\")","v":"-"},{"$f":"IFERROR(AL19/AM19,\"-\")","v":"-"},{"$f":"IFERROR(AM19/AN19,\"-\")","v":"-"},null,{"$f":"SUM(AS8:OFFSET(AS19,-1,0))","v":0},{"$f":"SUM(AT8:OFFSET(AT19,-1,0))","v":0},{"$f":"SUM(AU8:OFFSET(AU19,-1,0))","v":0},{"$f":"IFERROR((F19+H19)/AT19,\"-\")","v":"-"},"-","-",{"$f":"SUM(AY8:OFFSET(AY19,-1,0))","v":0},{"$f":"SUM(AZ8:OFFSET(AZ19,-1,0))","v":0},{"$f":"SUM(BA8:OFFSET(BA19,-1,0))","v":0},"-","-","-",null,{"$f":"SUM(BF8:OFFSET(BF19,-1,0))","v":0},{"$f":"SUM(BG8:OFFSET(BG19,-1,0))","v":0},{"$f":"SUM(BH8:OFFSET(BH19,-1,0))","v":0},"-","-","-",{"$f":"SUM(BL8:OFFSET(BL19,-1,0))","v":0},{"$f":"SUM(BM8:OFFSET(BM19,-1,0))","v":0},{"$f":"SUM(BN8:OFFSET(BN19,-1,0))","v":0},"-","-","-",null,{"$f":"SUM(BS8:OFFSET(BS19,-1,0))","v":0},{"$f":"SUM(BT8:OFFSET(BT19,-1,0))","v":0},{"$f":"IFERROR(N19/BT19,\"-\")","v":"-"},"-",null,{"$f":"SUM(BX8:OFFSET(BX19,-1,0))","v":0},{"$f":"SUM(BY8:OFFSET(BY19,-1,0))","v":0},{"$f":"SUM(BZ8:OFFSET(BZ19,-1,0))","v":0},{"$f":"SUM(CA8:OFFSET(CA19,-1,0))","v":0},{"$f":"SUM(CB8:OFFSET(CB19,-1,0))","v":0},{"$f":"SUM(CC8:OFFSET(CC19,-1,0))","v":0},"-","-","-","-","-","-",null,{"$f":"SUM(CK8:OFFSET(CK19,-1,0))","v":0},{"$f":"SUM(CL8:OFFSET(CL19,-1,0))","v":0},"-",{"$f":"IFERROR(CK19/CL19,\"-\")","v":"-"},null,{"$f":"SUM(CP8:OFFSET(CP19,-1,0))","v":0},{"$f":"SUM(CQ8:OFFSET(CQ19,-1,0))","v":0},{"$f":"SUM(CR8:OFFSET(CR19,-1,0))","v":0},"-",{"$f":"IFERROR(CP19/CQ19,\"-\")","v":"-"},"-",{"$f":"SUM(CV8:OFFSET(CV19,-1,0))","v":0},"-",null,{"$f":"SUM(CY8:OFFSET(CY19,-1,0))","v":0},{"$f":"SUM(CZ8:OFFSET(CZ19,-1,0))","v":0},{"$f":"SUM(DA8:OFFSET(DA19,-1,0))","v":0},{"$f":"SUM(DB8:OFFSET(DB19,-1,0))","v":0},{"$f":"SUM(DC8:OFFSET(DC19,-1,0))","v":0},"-","-","-","-","-",null,{"$f":"SUM(DJ8:OFFSET(DJ19,-1,0))","v":0},"-"]
[{"$nulls":6}," "]